Body Name,Body,Service Division Label,Service Division Code,Organisational Unit,Expenditure Category,Expenditure Code,CIPFA detailed expediture type,CIPFA detailed expediture code,Narrative,Date,Transaction number,Net Amount,Capital and Revenue,Supplier Name,Supplier ID,,
Chorley Borough Council,http://statistics.data.gov.uk/id/local-authority/30UE,Central Support Services,1009,CUST - Customer & Digital,Telephones - Other,40085,Communication and Computing,5028,Adept Telecom - January 2024,17/01/2024,0190104,2034.92,Revenue,Adept Telecom PLC,77452,,
Chorley Borough Council,http://statistics.data.gov.uk/id/local-authority/30UE,Capital,Capital,GROW - Commercial Services,Other Capital Related Fees,03024,Capital Expenditure,Capital,Feasibility Study for upcoming Decarbonisation Scheme across Leisure Sites,17/01/2024,0189750,28889,Capital,Alliance Leisure Services Limited,89439,,
Chorley Borough Council,http://statistics.data.gov.uk/id/local-authority/30UE,Central Support Services,1009,CUST - Customer & Digital,Bank Charges,40151,Miscellaneous Expenses,5034,CHBC 31/08/2023,31/01/2024,0184485,868.68,Revenue,Allpay Net Ltd,17242,,
Chorley Borough Council,http://statistics.data.gov.uk/id/local-authority/30UE,Central Support Services,1009,CUST - Customer & Digital,Bank Charges,40151,Miscellaneous Expenses,5034,CHBC 30/09/23,31/01/2024,0185367,841.31,Revenue,Allpay Net Ltd,17242,,
Chorley Borough Council,http://statistics.data.gov.uk/id/local-authority/30UE,Central Support Services,1009,CUST - Customer & Digital,Bank Charges,40151,Miscellaneous Expenses,5034,CHBC 31/10/23,31/01/2024,0187787,823.45,Revenue,Allpay Net Ltd,17242,,
Chorley Borough Council,http://statistics.data.gov.uk/id/local-authority/30UE,Central Support Services,1009,CUST - Customer & Digital,Bank Charges,40151,Miscellaneous Expenses,5034,,31/01/2024,0189220,776.86,Revenue,Allpay Net Ltd,17242,,
Chorley Borough Council,http://statistics.data.gov.uk/id/local-authority/30UE,Central Support Services,1009,CUST - Customer & Digital,Bank Charges,40151,Miscellaneous Expenses,5034,,31/01/2024,0189941,798.72,Revenue,Allpay Net Ltd,17242,,
Chorley Borough Council,http://statistics.data.gov.uk/id/local-authority/30UE,Central Support Services,1009,GROW - Commercial Services,Planned Maintenance,20006,Repairs Maintenance & Alts,5005,Reactive Security Systems Repair Works @ Cotswold House,24/01/2024,0190244,2572.23,Revenue,Amalgamated Ltd,78289,,
Chorley Borough Council,http://statistics.data.gov.uk/id/local-authority/30UE,Central Support Services,1009,CUST - Customer & Digital,Computer Software-Additional,40102,Communication and Computing,5028,"Amazon AWS web services - 718576685325 Cloud charges, , November 2023",17/01/2024,0190105,5827.83,Revenue,Amazon Web Services EMEA SARL,80604,,
Chorley Borough Council,http://statistics.data.gov.uk/id/local-authority/30UE,Central Support Services,1009,CUST - Customer & Digital,Computer Software-Additional,40102,Communication and Computing,5028,Amazon AWS web services - 718576685325 Cloud chargesOctober 2023,17/01/2024,0190106,5500.82,Revenue,Amazon Web Services EMEA SARL,80604,,
Chorley Borough Council,http://statistics.data.gov.uk/id/local-authority/30UE,Central Support Services,1009,CUST - Customer & Digital,Computer Software-Additional,40102,Communication and Computing,5028,"Amazon AWS web services - 718576685325 Cloud charges, , August 2023",17/01/2024,0190107,750.67,Revenue,Amazon Web Services EMEA SARL,80604,,
Chorley Borough Council,http://statistics.data.gov.uk/id/local-authority/30UE,Central Support Services,1009,CUST - Customer & Digital,Computer Software-Additional,40102,Communication and Computing,5028,"Amazon AWS web services - 718576685325 Cloud charges, , September 2023",17/01/2024,0190107,3079.48,Revenue,Amazon Web Services EMEA SARL,80604,,
Chorley Borough Council,http://statistics.data.gov.uk/id/local-authority/30UE,Central Support Services,1009,CUST - Customer & Digital,Computer Software-Additional,40102,Communication and Computing,5028,"Amazon AWS web services - 718576685325 Cloud charges, , October 2023",17/01/2024,0190107,1399.01,Revenue,Amazon Web Services EMEA SARL,80604,,
Chorley Borough Council,http://statistics.data.gov.uk/id/local-authority/30UE,Central Support Services,1009,CUST - Customer & Digital,Computer Software-Additional,40102,Communication and Computing,5028,"Amazon AWS web services - 718576685325 Cloud charges, , November 2023",17/01/2024,0190107,1006.61,Revenue,Amazon Web Services EMEA SARL,80604,,
Chorley Borough Council,http://statistics.data.gov.uk/id/local-authority/30UE,Homelessness,1075,EARL - Communities,Grants - Tenant Participation,40142,Grants and Subscriptions,5031,0,17/01/2024,0190240,625,Revenue,Ann Strange,87237,,
Chorley Borough Council,http://statistics.data.gov.uk/id/local-authority/30UE,Homelessness,1075,EARL - Communities,Grants - Tenant Participation,40142,Grants and Subscriptions,5031,0,17/01/2024,0190225,625,Revenue,Anne Barnish,85651,,
Chorley Borough Council,http://statistics.data.gov.uk/id/local-authority/30UE,Parking Services,1066,GROW - Commercial Services,External Contractors,50008,Private Contractors,5042,To provide Cash collection and Counting services from 01.10.23 to 31.03.24,24/01/2024,0189920,863.51,Revenue,APCOA Parking UK Ltd,86386,,
Chorley Borough Council,http://statistics.data.gov.uk/id/local-authority/30UE,Parking Services,1066,GROW - Commercial Services,External Contractors,50008,Private Contractors,5042,To provide Cash collection and Counting services from 01.04.23 to 30.09.23,24/01/2024,0189921,699.79,Revenue,APCOA Parking UK Ltd,86386,,
Chorley Borough Council,http://statistics.data.gov.uk/id/local-authority/30UE,Parking Services,1066,GROW - Commercial Services,External Contractors,50008,Private Contractors,5042,To provide Cash collection and Counting services from 01.04.23 to 30.09.23,24/01/2024,0189922,975.94,Revenue,APCOA Parking UK Ltd,86386,,
Chorley Borough Council,http://statistics.data.gov.uk/id/local-authority/30UE,Parking Services,1066,GROW - Commercial Services,External Contractors,50008,Private Contractors,5042,To provide Cash collection and Counting services from 01.04.23 to 30.09.23,24/01/2024,0189923,814.75,Revenue,APCOA Parking UK Ltd,86386,,
Chorley Borough Council,http://statistics.data.gov.uk/id/local-authority/30UE,Parking Services,1066,GROW - Commercial Services,External Contractors,50008,Private Contractors,5042,To provide Cash collection and Counting services from 01.04.23 to 30.09.23,24/01/2024,0189936,827.01,Revenue,APCOA Parking UK Ltd,86386,,
Chorley Borough Council,http://statistics.data.gov.uk/id/local-authority/30UE,Parking Services,1066,GROW - Commercial Services,External Contractors,50008,Private Contractors,5042,To provide Cash collection and Counting services from 01.04.23 to 30.09.23,24/01/2024,0189937,783.74,Revenue,APCOA Parking UK Ltd,86386,,
Chorley Borough Council,http://statistics.data.gov.uk/id/local-authority/30UE,Parking Services,1066,GROW - Commercial Services,External Contractors,50008,Private Contractors,5042,To provide Cash collection and Counting services from 01.04.23 to 30.09.23,24/01/2024,0189938,718.76,Revenue,APCOA Parking UK Ltd,86386,,
Chorley Borough Council,http://statistics.data.gov.uk/id/local-authority/30UE,Parking Services,1066,GROW - Commercial Services,External Contractors,50008,Private Contractors,5042,To provide Cash collection and Counting services from 01.10.23 to 31.03.24,24/01/2024,0190198,755.1,Revenue,APCOA Parking UK Ltd,86386,,
Chorley Borough Council,http://statistics.data.gov.uk/id/local-authority/30UE,Tourism,1039,GOVN - Policy & Governance,Events Insurance,40252,Services,5027,Astley Illuminated and Santas Grotto,10/01/2024,0189919,588,Revenue,Arthur J. Gallagher,83531,,
Chorley Borough Council,http://statistics.data.gov.uk/id/local-authority/30UE,Service Management & Support,1009,CUST - Customer & Digital,Vehicles and Plant Maintenance,30045,Direct Transport Costs,5016,As per AU136028,10/01/2024,0189792,1232.55,Revenue,Autofit,78140,,
Chorley Borough Council,http://statistics.data.gov.uk/id/local-authority/30UE,Service Management & Support,1009,CUST - Customer & Digital,Vehicles and Plant Maintenance,30045,Direct Transport Costs,5016,Advice note AUt4571,10/01/2024,0189830,562.32,Revenue,Autofit,78140,,
Chorley Borough Council,http://statistics.data.gov.uk/id/local-authority/30UE,Other Short Term Creditors,0,GOVN - Policy & Governance,Amount Paid,00010,Balance Sheet,Balance,AVC Wise Scheme - annual purchase order (monthly spend approximately 8872,17/01/2024,0189860,549.83,Revenue,AVCWise,89242,,
Chorley Borough Council,http://statistics.data.gov.uk/id/local-authority/30UE,Central Support Services,1009,GOVN - Policy & Governance,Consultants` Fees,40077,Services,5027,Support with IFRS16 accounting technical queries,17/01/2024,0189918,2500,Revenue,Azets Holdings Ltd,86389,,
Chorley Borough Council,http://statistics.data.gov.uk/id/local-authority/30UE,Service Management & Support,1009,CUST - Customer & Digital,Hire Of Vehicles and Plant,30028,Contrct Hire & Operating Lease,5018,"As per submission to ITT invitation to Tender for the , contract hire with service and maintenance of , Grounds Maintenance Machi",31/01/2024,0188589,1242.4,Revenue,Balmers Garden Machinery,17075,,
Chorley Borough Council,http://statistics.data.gov.uk/id/local-authority/30UE,Service Management & Support,1009,CUST - Customer & Digital,Hire Of Vehicles and Plant,30028,Contrct Hire & Operating Lease,5018,"As per submission to ITT invitation to Tender for the , contract hire with service and maintenance of , Grounds Maintenance Machi",10/01/2024,0189902,1242.4,Revenue,Balmers Garden Machinery,17075,,
Chorley Borough Council,http://statistics.data.gov.uk/id/local-authority/30UE,Culture & Heritage,1036,GOVN - Policy & Governance,Publicity - Advertising,40157,Miscellaneous Expenses,5034,"Astley GHR Lancashire & Wigan Winter Partnership, 5x 10s tags daily- production included. , 6 week campaign, 294 x 10s credits de",17/01/2024,0189217,1232.7,Revenue,Bauer Active Ltd,50574,,
Chorley Borough Council,http://statistics.data.gov.uk/id/local-authority/30UE,Tourism,1039,GOVN - Policy & Governance,Publicity - Advertising,40157,Miscellaneous Expenses,5034,"Rock FM Radio campaign from Monday 4 December 2023 - 3rd January 2023, to promote Chorley`s Winter Wonderland attraction.",10/01/2024,0189907,2629.8,Revenue,Bauer Active Ltd,50574,,
Chorley Borough Council,http://statistics.data.gov.uk/id/local-authority/30UE,Service Management & Support,1009,CUST - Customer & Digital,Grounds Maintenance Contractor,20043,Grounds Maintenance Costs,5013,Estimate 1387,24/01/2024,0190195,660,Revenue,Beardwood Tree Services,77437,,
Chorley Borough Council,http://statistics.data.gov.uk/id/local-authority/30UE,Service Management & Support,1009,CUST - Customer & Digital,Grounds Maintenance Contractor,20043,Grounds Maintenance Costs,5013,Estimate 1402,24/01/2024,0190195,640,Revenue,Beardwood Tree Services,77437,,
Chorley Borough Council,http://statistics.data.gov.uk/id/local-authority/30UE,Capital,Capital,GROW - Commercial Services,Other Capital Related Fees,03024,Capital Expenditure,Capital,Full refurb to move from commercial property to a residential building as per chest tender,24/01/2024,0188143,10443.39,Capital,Bell Decorating Group Limited,55552,,
Chorley Borough Council,http://statistics.data.gov.uk/id/local-authority/30UE,Homelessness,1075,EARL - Communities,Grants - Tenant Participation,40142,Grants and Subscriptions,5031,0,17/01/2024,0190223,625,Revenue,Beverley Elliott,86921,,
Chorley Borough Council,http://statistics.data.gov.uk/id/local-authority/30UE,Homelessness,1075,EARL - Communities,Bed and Breakfast Accommodation,40232,Miscellaneous Expenses,5034,"NAME REDACTED 14 nights, 22/12/23 - 04/01/2024",17/01/2024,0190268,780,Revenue,Blackpool Sands Ltd,90058,,
Chorley Borough Council,http://statistics.data.gov.uk/id/local-authority/30UE,Economic Development,1096,GROW - Commercial Services,Electricity,20013,Energy Costs,5006,,03/01/2024,0189808,3482.04,Revenue,British Gas Business,22242,,
Chorley Borough Council,http://statistics.data.gov.uk/id/local-authority/30UE,Business Support,1095,GROW - Commercial Services,Gas,20014,Energy Costs,5006,Billing period : 29 December 2023 to 15 January 2024,24/01/2024,0190354,981.37,Revenue,British Gas Business,22242,,
Chorley Borough Council,http://statistics.data.gov.uk/id/local-authority/30UE,Economic Development,1096,GROW - Commercial Services,Electricity,20013,Energy Costs,5006,9 December 2023 to 2 January 2024,24/01/2024,0190407,3990.5,Revenue,British Gas Business,22242,,
Chorley Borough Council,http://statistics.data.gov.uk/id/local-authority/30UE,Economic Development,1096,GROW - Commercial Services,Electricity,20013,Energy Costs,5006,3 January 2024 to 8 January 2024,31/01/2024,0190494,972.53,Revenue,British Gas Business,22242,,
Chorley Borough Council,http://statistics.data.gov.uk/id/local-authority/30UE,Central Support Services,1009,GROW - Commercial Services,General Repairs - Reactive,20004,Repairs Maintenance & Alts,5005,Cotswold House Reactive General Building Repair Works,10/01/2024,0188241,670.44,Revenue,Bryan Lee Building Contractors Ltd,78160,,
Chorley Borough Council,http://statistics.data.gov.uk/id/local-authority/30UE,Business Support,1095,GROW - Commercial Services,General Repairs - Reactive,20004,Repairs Maintenance & Alts,5005,Primrose Gardens Reactive General Building Repair Works,03/01/2024,0189300,796.38,Revenue,Bryan Lee Building Contractors Ltd,78160,,
Chorley Borough Council,http://statistics.data.gov.uk/id/local-authority/30UE,Central Support Services,1009,GROW - Commercial Services,General Repairs - Reactive,20004,Repairs Maintenance & Alts,5005,CBC Housing Reactive General Building Repair Works,03/01/2024,0189593,3722.09,Revenue,Bryan Lee Building Contractors Ltd,78160,,
Chorley Borough Council,http://statistics.data.gov.uk/id/local-authority/30UE,Central Support Services,1009,GROW - Commercial Services,General Repairs - Reactive,20004,Repairs Maintenance & Alts,5005,CBC Housing Reactive General Building Repair Works,24/01/2024,0190205,555.66,Revenue,Bryan Lee Building Contractors Ltd,78160,,
Chorley Borough Council,http://statistics.data.gov.uk/id/local-authority/30UE,Central Support Services,1009,GROW - Commercial Services,General Repairs - Reactive,20004,Repairs Maintenance & Alts,5005,CBC Housing Reactive General Building Repair Works,24/01/2024,0190206,610.44,Revenue,Bryan Lee Building Contractors Ltd,78160,,
Chorley Borough Council,http://statistics.data.gov.uk/id/local-authority/30UE,Central Support Services,1009,GROW - Commercial Services,General Repairs - Reactive,20004,Repairs Maintenance & Alts,5005,Union Street Reactive General Building Repair Works,24/01/2024,0190208,1212.23,Revenue,Bryan Lee Building Contractors Ltd,78160,,
Chorley Borough Council,http://statistics.data.gov.uk/id/local-authority/30UE,Service Management & Support,1009,CUST - Customer & Digital,Hire Of Vehicles and Plant,30028,Contrct Hire & Operating Lease,5018,"Contract Hire of 9 Nissan Townstar EV vans as per open tender exercise and response by Chorley Group including 10,000 miles per a",10/01/2024,0189927,4507.58,Revenue,Bugle Inn Motor Company Ltd,21977,,
Chorley Borough Council,http://statistics.data.gov.uk/id/local-authority/30UE,Planning Policy,1092,GROW - Commercial Services,Tools & Equipment - Purchase,40003,"Equipment, Furniture & Materia",5023,"Please supply:, , 1 x Viper AS6690T 26� Pedestrian combined battery scrubber dryer complete with non-maintenance gel batteries, 2",24/01/2024,0190193,4995,Revenue,CFM North East Ltd.,90052,,
Chorley Borough Council,http://statistics.data.gov.uk/id/local-authority/30UE,Business Support,1095,GROW - Commercial Services,Salting & Gritting,20059,Grounds Maintenance Costs,5013,"seasonal winter gritting for Strawberry Meadows Business Park of all public walkways and site road. , 74.45 plus VAT per grit, x",10/01/2024,0189873,572.04,Revenue,Chameleon Facilities Limited,78464,,
Chorley Borough Council,http://statistics.data.gov.uk/id/local-authority/30UE,Business Support,1095,GROW - Commercial Services,Salting & Gritting,20059,Grounds Maintenance Costs,5013,"Seasonal�Winter�Gritting�service�for�Market�Walk�Shopping�Centre,�service�yards,�public�walkways�and�car�park�as�agreed. , Quote�",24/01/2024,0189896,742.88,Revenue,Chameleon Facilities Limited,78464,,
Chorley Borough Council,http://statistics.data.gov.uk/id/local-authority/30UE,Parking Services,1066,GROW - Commercial Services,External Contractors,50008,Private Contractors,5042,"Processing 075, , Processing 076, , Processing 077, , Processing 079, , Processing 080, , Processing 085, , Processing 086, , MIP",03/01/2024,0189328,876.16,Revenue,Chipside Ltd,22063,,
Chorley Borough Council,http://statistics.data.gov.uk/id/local-authority/30UE,Parking Services,1066,GROW - Commercial Services,External Contractors,50008,Private Contractors,5042,"Processing 075, , Processing 076, , Processing 077, , Processing 079, , Processing 080, , Processing 085, , Processing 086, , MIP",24/01/2024,0189917,692.47,Revenue,Chipside Ltd,22063,,
Chorley Borough Council,http://statistics.data.gov.uk/id/local-authority/30UE,Parking Services,1066,GROW - Commercial Services,External Contractors,50008,Private Contractors,5042,"Processing 074 - Provision of Notice., , Processing Services for period 01.04.2023-31.03.2024, Notice Processing Services, Automa",31/01/2024,0190336,634.38,Revenue,Chipside Ltd,22063,,
Chorley Borough Council,http://statistics.data.gov.uk/id/local-authority/30UE,Regulatory Services,1048,PLAN - Planning & Development,Taxi Testing & Vehicle Safety Report,40234,Services,5027,,10/01/2024,0189951,697.4,Revenue,Chorley Autocare Ltd,17110,,
Chorley Borough Council,http://statistics.data.gov.uk/id/local-authority/30UE,Corporate Management,1008,EARL - Communities,Other Contributions,40145,Grants and Subscriptions,5031,Raise Purchase Order - Household Support Fund 4 � additional allocation as agreed for Jan � March 2024 delivery,17/01/2024,0190192,23000,Revenue,Citizens Advice Lancashire,17035,,
Chorley Borough Council,http://statistics.data.gov.uk/id/local-authority/30UE,Business Support,1095,GROW - Commercial Services,Christmas Lights,40179,Miscellaneous Expenses,5034,"Chorley TMarket Walk Christmas Display 2023/24 , , Calico East area , Storage, installation and dismantle of area scheme 5450, ,",31/01/2024,0190199,1362.5,Revenue,City Illuminations Ltd,77388,,
Chorley Borough Council,http://statistics.data.gov.uk/id/local-authority/30UE,Economic Development,1096,GROW - Commercial Services,Christmas Lights,40179,Miscellaneous Expenses,5034,"Chorley Town Centre Christmas Display 2023/24, , Portland Street/Mcdonalds area, Storage, installation and dismantle of area sche",31/01/2024,0190200,3186.25,Revenue,City Illuminations Ltd,77388,,
Chorley Borough Council,http://statistics.data.gov.uk/id/local-authority/30UE,Business Support,1095,GROW - Commercial Services,Planned Maintenance,20006,Repairs Maintenance & Alts,5005,Planned Lift Maintenance and Remedial Works also includes insurance inspector remedials @ Primrose Gardens,17/01/2024,0189975,625,Revenue,Classic Lifts Limited,20897,,
Chorley Borough Council,http://statistics.data.gov.uk/id/local-authority/30UE,Tourism,1039,GOVN - Policy & Governance,External Contractor,40198,Miscellaneous Expenses,5034,"Winter Wonderland: Provision of 2 x security guards between Monday 1st January and Wednesday 10th January, final date to be confi",17/01/2024,0190307,4224,Revenue,Close Protection International Ltd,90027,,
Chorley Borough Council,http://statistics.data.gov.uk/id/local-authority/30UE,Tourism,1039,GOVN - Policy & Governance,External Contractor,40198,Miscellaneous Expenses,5034,Winter Wonderland: Provision of 2 x security guards between Monday 18th and Sunday 31st December as per the security schedule pro,17/01/2024,0190308,1922.25,Revenue,Close Protection International Ltd,90027,,
Chorley Borough Council,http://statistics.data.gov.uk/id/local-authority/30UE,Recreation & Sport,1037,GROW - Commercial Services,Gas,20014,Energy Costs,5006,,03/01/2024,0189729,756.43,Revenue,Corona Energy Retail 2 Ltd,67249,,
Chorley Borough Council,http://statistics.data.gov.uk/id/local-authority/30UE,Culture & Heritage,1036,GROW - Commercial Services,Gas,20014,Energy Costs,5006,,03/01/2024,0189730,509.99,Revenue,Corona Energy Retail 2 Ltd,67249,,
Chorley Borough Council,http://statistics.data.gov.uk/id/local-authority/30UE,Recreation & Sport,1037,GROW - Commercial Services,Gas,20014,Energy Costs,5006,,03/01/2024,0189733,528.94,Revenue,Corona Energy Retail 2 Ltd,67249,,
Chorley Borough Council,http://statistics.data.gov.uk/id/local-authority/30UE,Central Support Services,1009,GROW - Commercial Services,Gas,20014,Energy Costs,5006,,03/01/2024,0189734,546.8,Revenue,Corona Energy Retail 2 Ltd,67249,,
Chorley Borough Council,http://statistics.data.gov.uk/id/local-authority/30UE,Open Spaces,1038,GROW - Commercial Services,Gas,20014,Energy Costs,5006,,03/01/2024,0189736,4703.96,Revenue,Corona Energy Retail 2 Ltd,67249,,
Chorley Borough Council,http://statistics.data.gov.uk/id/local-authority/30UE,Homelessness,1075,GROW - Commercial Services,Gas,20014,Energy Costs,5006,,03/01/2024,0189737,3541.5,Revenue,Corona Energy Retail 2 Ltd,67249,,
Chorley Borough Council,http://statistics.data.gov.uk/id/local-authority/30UE,Recreation & Sport,1037,GROW - Commercial Services,Gas,20014,Energy Costs,5006,,03/01/2024,0189738,4359.56,Revenue,Corona Energy Retail 2 Ltd,67249,,
Chorley Borough Council,http://statistics.data.gov.uk/id/local-authority/30UE,Recreation & Sport,1037,GROW - Commercial Services,Gas,20014,Energy Costs,5006,,03/01/2024,0189739,1024.6,Revenue,Corona Energy Retail 2 Ltd,67249,,
Chorley Borough Council,http://statistics.data.gov.uk/id/local-authority/30UE,Business Support,1095,GROW - Commercial Services,Gas,20014,Energy Costs,5006,,03/01/2024,0189740,7481.18,Revenue,Corona Energy Retail 2 Ltd,67249,,
Chorley Borough Council,http://statistics.data.gov.uk/id/local-authority/30UE,Central Support Services,1009,GROW - Commercial Services,Gas,20014,Energy Costs,5006,,03/01/2024,0189799,5877.35,Revenue,Corona Energy Retail 2 Ltd,67249,,
Chorley Borough Council,http://statistics.data.gov.uk/id/local-authority/30UE,Recreation & Sport,1037,GROW - Commercial Services,Gas,20014,Energy Costs,5006,,03/01/2024,0189800,5856.36,Revenue,Corona Energy Retail 2 Ltd,67249,,
Chorley Borough Council,http://statistics.data.gov.uk/id/local-authority/30UE,Central Support Services,1009,GROW - Commercial Services,Gas,20014,Energy Costs,5006,,03/01/2024,0189801,4419.08,Revenue,Corona Energy Retail 2 Ltd,67249,,
Chorley Borough Council,http://statistics.data.gov.uk/id/local-authority/30UE,Service Management Support,1009,GROW - Commercial Services,Gas,20014,Energy Costs,5006,,03/01/2024,0189802,517.21,Revenue,Corona Energy Retail 2 Ltd,67249,,
Chorley Borough Council,http://statistics.data.gov.uk/id/local-authority/30UE,Recreation & Sport,1037,GROW - Commercial Services,Gas,20014,Energy Costs,5006,,03/01/2024,0189803,8800.03,Revenue,Corona Energy Retail 2 Ltd,67249,,
Chorley Borough Council,http://statistics.data.gov.uk/id/local-authority/30UE,Central Support Services,1009,GROW - Commercial Services,Gas,20014,Energy Costs,5006,,03/01/2024,0189805,886.47,Revenue,Corona Energy Retail 2 Ltd,67249,,
Chorley Borough Council,http://statistics.data.gov.uk/id/local-authority/30UE,Recreation & Sport,1037,GROW - Commercial Services,Gas,20014,Energy Costs,5006,,03/01/2024,0189806,1276.26,Revenue,Corona Energy Retail 2 Ltd,67249,,
Chorley Borough Council,http://statistics.data.gov.uk/id/local-authority/30UE,Recreation & Sport,1037,GROW - Commercial Services,Gas,20014,Energy Costs,5006,,03/01/2024,0189807,34525.52,Revenue,Corona Energy Retail 2 Ltd,67249,,
Chorley Borough Council,http://statistics.data.gov.uk/id/local-authority/30UE,Central Support Services,1009,GROW - Commercial Services,General Subscriptions,40146,Grants and Subscriptions,5031,"Annual Subscription to Online Property Valuation , 01/12/23 - 30/11/2024",24/01/2024,0188418,4232.52,Revenue,CoStar UK Limited,67985,,
Chorley Borough Council,http://statistics.data.gov.uk/id/local-authority/30UE,Capital,Capital,GROW - Commercial Services,Consultants Fees,03025,Capital Expenditure,Capital,All Seasons Leisure Centre - Site Survey,31/01/2024,0189717,3195,Capital,CRE8 PROJECT SURVEYORS LTD,89612,,
Chorley Borough Council,http://statistics.data.gov.uk/id/local-authority/30UE,Capital,Capital,GROW - Commercial Services,Consultants Fees,03025,Capital Expenditure,Capital,Clayton Green Sports Centre - Site Survey,31/01/2024,0189717,3135,Capital,CRE8 PROJECT SURVEYORS LTD,89612,,
Chorley Borough Council,http://statistics.data.gov.uk/id/local-authority/30UE,Capital,Capital,GROW - Commercial Services,Consultants Fees,03025,Capital Expenditure,Capital,West Way Sports Hub - Site Survey,31/01/2024,0189717,1200,Capital,CRE8 PROJECT SURVEYORS LTD,89612,,
Chorley Borough Council,http://statistics.data.gov.uk/id/local-authority/30UE,Capital,Capital,GROW - Commercial Services,Consultants Fees,03025,Capital Expenditure,Capital,Brinscall Swimming Pool - Site Survey,31/01/2024,0189717,2150,Capital,CRE8 PROJECT SURVEYORS LTD,89612,,
Chorley Borough Council,http://statistics.data.gov.uk/id/local-authority/30UE,Central Support Services,1009,GOVN - Policy & Governance,Refreshments,40036,Catering,5024,angel springs water supply,31/01/2024,0186013,1730.31,Revenue,Culligan (UK) Limited,77689,,
Chorley Borough Council,http://statistics.data.gov.uk/id/local-authority/30UE,Central Support Services,1009,GOVN - Policy & Governance,Refreshments,40036,Catering,5024,angel springs water supply,31/01/2024,0187769,547.36,Revenue,Culligan (UK) Limited,77689,,
Chorley Borough Council,http://statistics.data.gov.uk/id/local-authority/30UE,Central Support Services,1009,GOVN - Policy & Governance,Refreshments,40036,Catering,5024,angel springs water supply,31/01/2024,0188446,685.58,Revenue,Culligan (UK) Limited,77689,,
Chorley Borough Council,http://statistics.data.gov.uk/id/local-authority/30UE,Central Support Services,1009,GOVN - Policy & Governance,Refreshments,40036,Catering,5024,angel springs water supply,31/01/2024,0188487,1002.5,Revenue,Culligan (UK) Limited,77689,,
Chorley Borough Council,http://statistics.data.gov.uk/id/local-authority/30UE,Central Support Services,1009,GOVN - Policy & Governance,Refreshments,40036,Catering,5024,angel springs water supply,31/01/2024,0188517,1130.79,Revenue,Culligan (UK) Limited,77689,,
Chorley Borough Council,http://statistics.data.gov.uk/id/local-authority/30UE,Central Support Services,1009,GOVN - Policy & Governance,Refreshments,40036,Catering,5024,angel springs water supply,31/01/2024,0188518,1216.94,Revenue,Culligan (UK) Limited,77689,,
Chorley Borough Council,http://statistics.data.gov.uk/id/local-authority/30UE,Central Support Services,1009,GOVN - Policy & Governance,Refreshments,40036,Catering,5024,angel springs water supply,10/01/2024,0188520,1041.72,Revenue,Culligan (UK) Limited,77689,,
Chorley Borough Council,http://statistics.data.gov.uk/id/local-authority/30UE,Central Support Services,1009,GOVN - Policy & Governance,Refreshments,40036,Catering,5024,angel springs water supply,31/01/2024,0188521,826.37,Revenue,Culligan (UK) Limited,77689,,
Chorley Borough Council,http://statistics.data.gov.uk/id/local-authority/30UE,Central Support Services,1009,GOVN - Policy & Governance,Refreshments,40036,Catering,5024,angel springs water supply,10/01/2024,0188522,640,Revenue,Culligan (UK) Limited,77689,,
Chorley Borough Council,http://statistics.data.gov.uk/id/local-authority/30UE,Central Support Services,1009,GOVN - Policy & Governance,Refreshments,40036,Catering,5024,angel springs water supply,31/01/2024,0190058,851.24,Revenue,Culligan (UK) Limited,77689,,
Chorley Borough Council,http://statistics.data.gov.uk/id/local-authority/30UE,Homelessness,1075,EARL - Communities,Grants - Tenant Participation,40142,Grants and Subscriptions,5031,0,17/01/2024,0190221,625,Revenue,Daniel McKeown-Henshall,85588,,
Chorley Borough Council,http://statistics.data.gov.uk/id/local-authority/30UE,Central Support Services,1009,CUST - Customer & Digital,Computer Equipment-Purchase,40098,Communication and Computing,5028,"APC Smart-UPS On-Line, 20kVA/20kW, Rack/Tower, 230V/380V...415V, Hard wire 5-wire(3P+N+E)+3-wire(1P+N+E), Network Card, W/O rail ",17/01/2024,0188583,2049.65,Revenue,Data Centre UK,85504,,
Chorley Borough Council,http://statistics.data.gov.uk/id/local-authority/30UE,Service Management & Support,1009,CUST - Customer & Digital,Hire Of Vehicles and Plant,30028,Contrct Hire & Operating Lease,5018,"Contract hire of 1x large sweeper and 3x compact sweepers including servicing and maintenance, 36 months",10/01/2024,0189976,3819.47,Revenue,Dawson Group Environmental Municpal Civil Ltd,22011,,
Chorley Borough Council,http://statistics.data.gov.uk/id/local-authority/30UE,Service Management & Support,1009,CUST - Customer & Digital,Hire Of Vehicles and Plant,30028,Contrct Hire & Operating Lease,5018,"Contract hire of 1x large sweeper and 3x compact sweepers including servicing and maintenance, 36 months",10/01/2024,0189978,2824.41,Revenue,Dawson Group Environmental Municpal Civil Ltd,22011,,
Chorley Borough Council,http://statistics.data.gov.uk/id/local-authority/30UE,Service Management & Support,1009,CUST - Customer & Digital,Hire Of Vehicles and Plant,30028,Contrct Hire & Operating Lease,5018,"Contract hire of 1x large sweeper and 3x compact sweepers including servicing and maintenance, 36 months",10/01/2024,0189979,2824.41,Revenue,Dawson Group Environmental Municpal Civil Ltd,22011,,
Chorley Borough Council,http://statistics.data.gov.uk/id/local-authority/30UE,Service Management & Support,1009,CUST - Customer & Digital,Hire Of Vehicles and Plant,30028,Contrct Hire & Operating Lease,5018,"Contract hire of 1x large sweeper and 3x compact sweepers including servicing and maintenance, 36 months",10/01/2024,0189980,2824.41,Revenue,Dawson Group Environmental Municpal Civil Ltd,22011,,
Chorley Borough Council,http://statistics.data.gov.uk/id/local-authority/30UE,Service Management & Support,1009,CUST - Customer & Digital,Hire Of Vehicles and Plant,30028,Contrct Hire & Operating Lease,5018,"Contract hire of 1x large sweeper and 3x compact sweepers including servicing and maintenance, 36 months",10/01/2024,0189981,3578.43,Revenue,Dawson Group Environmental Municpal Civil Ltd,22011,,
Chorley Borough Council,http://statistics.data.gov.uk/id/local-authority/30UE,Service Management & Support,1009,CUST - Customer & Digital,Hire Of Vehicles and Plant,30028,Contrct Hire & Operating Lease,5018,"Contract hire of 1x large sweeper and 3x compact sweepers including servicing and maintenance, 36 months",10/01/2024,0189982,2695.15,Revenue,Dawson Group Environmental Municpal Civil Ltd,22011,,
Chorley Borough Council,http://statistics.data.gov.uk/id/local-authority/30UE,Service Management & Support,1009,CUST - Customer & Digital,Hire Of Vehicles and Plant,30028,Contrct Hire & Operating Lease,5018,"Contract hire of 1x large sweeper and 3x compact sweepers including servicing and maintenance, 36 months",10/01/2024,0189983,2695.15,Revenue,Dawson Group Environmental Municpal Civil Ltd,22011,,
Chorley Borough Council,http://statistics.data.gov.uk/id/local-authority/30UE,Service Management & Support,1009,CUST - Customer & Digital,Hire Of Vehicles and Plant,30028,Contrct Hire & Operating Lease,5018,"Contract hire of 1x large sweeper and 3x compact sweepers including servicing and maintenance, 36 months",10/01/2024,0189984,2695.15,Revenue,Dawson Group Environmental Municpal Civil Ltd,22011,,
Chorley Borough Council,http://statistics.data.gov.uk/id/local-authority/30UE,Central Support Services,1009,CUST - Customer & Digital,Service Fees,40056,Services,5027,Hub Software (SBRR solution),03/01/2024,0189582,1750,Revenue,Destin Solutions Ltd,78105,,
Chorley Borough Council,http://statistics.data.gov.uk/id/local-authority/30UE,Regulatory Services,1048,PLAN - Planning & Development,Professional Fees,14011,Direct Employee Expenses,5001,Consultation Fees for Taxi Group 2 Medicals December 2020 ongoing,03/01/2024,0189825,968,Revenue,Dr Simon Jones,81046,,
Chorley Borough Council,http://statistics.data.gov.uk/id/local-authority/30UE,Central Support Services,1009,CUST - Customer & Digital,Mobile Voice and Data,40086,Communication and Computing,5028,,17/01/2024,0190089,9250.63,Revenue,EE - Orange,16486,,
Chorley Borough Council,http://statistics.data.gov.uk/id/local-authority/30UE,Open Spaces,1038,CUST - Customer & Digital,Playground Equipment,40008,"Equipment, Furniture & Materia",5023,Supply 2 mesh grid (M564750) 1603X803 Brush Steel & 2 mesh grid (564740) 803X803 Brushed Steel. Deliver to Bengal St depot,31/01/2024,0189719,621,Revenue,eibeplay LTD,39513,,
Chorley Borough Council,http://statistics.data.gov.uk/id/local-authority/30UE,Homelessness,1075,GROW - Commercial Services,Laundry,40042,"Clothing, Uniforms and Laundry",5025,"In respect of Laundry services for period , 01/04/23 - 31/03/2024, For , Cotswold Supported housing, Cotswold Rd , Chorley",24/01/2024,0189940,1269.11,Revenue,Elis UK Ltd,20799,,
Chorley Borough Council,http://statistics.data.gov.uk/id/local-authority/30UE,Homelessness,1075,EARL - Communities,Grants - Tenant Participation,40142,Grants and Subscriptions,5031,0,17/01/2024,0190224,625,Revenue,Emma Tonge,85647,,
Chorley Borough Council,http://statistics.data.gov.uk/id/local-authority/30UE,Central Support Services,1009,EARL - Communities,Bailiffs' Fees,40071,Services,5027,"2 x GRT Removal:, , 1. Invoice 13143 and , 2. Invoice 13033",03/01/2024,0189532,1800,Revenue,Enforcement Bailiffs Ltd t/a Quality Bailiffs,89541,,
Chorley Borough Council,http://statistics.data.gov.uk/id/local-authority/30UE,Central Support Services,1009,EARL - Communities,Bailiffs' Fees,40071,Services,5027,"2 x GRT Removal:, , 1. Invoice 13143 and , 2. Invoice 13033",03/01/2024,0189599,900,Revenue,Enforcement Bailiffs Ltd t/a Quality Bailiffs,89541,,
Chorley Borough Council,http://statistics.data.gov.uk/id/local-authority/30UE,Capital,Capital,GROW - Commercial Services,Other Contractor,03012,Capital Expenditure,Capital,"Ecological Survey & Assessment at Ackhurst Road, Chorley, VIN REDACTED, (KERAX) Phase 1",31/01/2024,0189787,791,Capital,ERAP (Consultant Ecologists) Ltd,78559,,
Chorley Borough Council,http://statistics.data.gov.uk/id/local-authority/30UE,Capital,Capital,GROW - Commercial Services,Consultants Fees,03025,Capital Expenditure,Capital,"Ecological Survey and Assessment at Bengal Street, Chorley VIN REDACTED - , Phase 1",31/01/2024,0189823,791,Capital,ERAP (Consultant Ecologists) Ltd,78559,,
Chorley Borough Council,http://statistics.data.gov.uk/id/local-authority/30UE,Business Support,1095,GROW - Commercial Services,Internet Charges,40104,Communication and Computing,5028,"Operate, Platform and Calls & IP invoices for financial year April 2023 to March 2024",17/01/2024,0189888,2450,Revenue,Essensys Ltd,77836,,
Chorley Borough Council,http://statistics.data.gov.uk/id/local-authority/30UE,Business Support,1095,GROW - Commercial Services,Internet Charges,40104,Communication and Computing,5028,"Operate, Platform and Calls & IP invoices for financial year April 2023 to March 2024",17/01/2024,0190149,2450,Revenue,Essensys Ltd,77836,,
Chorley Borough Council,http://statistics.data.gov.uk/id/local-authority/30UE,Economic Development,1096,GROW - Commercial Services,Christmas Lights,40179,Miscellaneous Expenses,5034,"Live music entertainment in 1498 @The Market in the run up to Christmas. The costs for providing artists, sound engineer, equipme",24/01/2024,0189822,1500,Revenue,Event Chorley,85464,,
Chorley Borough Council,http://statistics.data.gov.uk/id/local-authority/30UE,Democratic Represent and  Mgnt,1007,GOVN - Policy & Governance,Mayoral Hospitality,40123,Expenses,5030,Venue dressing for the Mayor`s Charity Ball at Shaw Hill Golf & Spa Hotel in Whittle-le-Woods on 1 March 2024.,31/01/2024,0190470,905,Revenue,Event Entertainment Ltd (The Big White Events Comp,62042,,
Chorley Borough Council,http://statistics.data.gov.uk/id/local-authority/30UE,Service Management & Support,1009,CUST - Customer & Digital,Consultants` Fees,40077,Services,5027,Chorley Councils costs for the development and supply of a Shared Fleet Strategy for Chorley Council and South Ribble Borough Cou,31/01/2024,0190201,9750,Revenue,EVP Solutions Limited,89406,,
Chorley Borough Council,http://statistics.data.gov.uk/id/local-authority/30UE,Central Support Services,1009,CUST - Customer & Digital,Unitary Payment(S),50009,Private Contractors,5042,"Provision of waste and recycling collection services to Chorley Council Sept 2023 to March 2024, (* this is a new purchase order ",10/01/2024,0189726,214569.99,Revenue,FCC Recycling (UK) Ltd,89557,,
Chorley Borough Council,http://statistics.data.gov.uk/id/local-authority/30UE,Central Support Services,1009,EARL - Communities,Other Salaries Costs,14050,Direct Employee Expenses,5001,"Consultancy fee for December 2023, 12 days @ 350",17/01/2024,0190191,2800,Revenue,Fifty One Management,89628,,
Chorley Borough Council,http://statistics.data.gov.uk/id/local-authority/30UE,Central Support Services,1009,EARL - Communities,Children's Activities,40188,Miscellaneous Expenses,5034,Delivery of Chorley HAF programme Christmas 2023 as per grant agreement,10/01/2024,0189887,2560,Revenue,First Kick Coaching,89305,,
Chorley Borough Council,http://statistics.data.gov.uk/id/local-authority/30UE,Parking Services,1066,GROW - Commercial Services,Fixtures & Fittings - Repair/Mtnce,20028,Fixtures and Fittings,5010,"To programme the P & D machines for a temporary Christmas tariff valid from 1st December 23 to 24th December 23. , Strada Downloa",03/01/2024,0189423,1762.5,Revenue,Flow Bird Smart City UK Ltd,16279,,
Chorley Borough Council,http://statistics.data.gov.uk/id/local-authority/30UE,Central Support Services,1009,GOVN - Policy & Governance,Legal Fees,40171,Miscellaneous Expenses,5034,Counsels fee paid by Forbes regarding defending of injunction and title documents review,10/01/2024,0185180,2250,Revenue,Forbes Solicitors,17527,,
Chorley Borough Council,http://statistics.data.gov.uk/id/local-authority/30UE,Homelessness,1075,EARL - Communities,Grants - Tenant Participation,40142,Grants and Subscriptions,5031,0,17/01/2024,0190241,625,Revenue,Francis Marsden,85643,,
Chorley Borough Council,http://statistics.data.gov.uk/id/local-authority/30UE,Building Control,1090,PLAN - Planning & Development,Professional Fees,40063,Services,5027,", Contractor Fees for NAME REDACTED new contract commencing 25.09.2023 for 6 months",03/01/2024,0189770,4475,Revenue,Fraser Building Management Services Limited,89405,,
Chorley Borough Council,http://statistics.data.gov.uk/id/local-authority/30UE,Homelessness,1075,EARL - Communities,Grants - Tenant Participation,40142,Grants and Subscriptions,5031,0,17/01/2024,0190214,625,Revenue,Gary MacFarlane,85416,,
Chorley Borough Council,http://statistics.data.gov.uk/id/local-authority/30UE,Central Support Services,1009,CUST - Customer & Digital,Printing,40043,"Printing, Stationery & General",5026,Garden Waste Subscription payments 2023/24,10/01/2024,0189727,1424.77,Revenue,GoCardless,77457,,
Chorley Borough Council,http://statistics.data.gov.uk/id/local-authority/30UE,Central Support Services,1009,CUST - Customer & Digital,Printing,40043,"Printing, Stationery & General",5026,Garden Waste Subscription payments 2023/24,24/01/2024,0190395,1424.67,Revenue,GoCardless,77457,,
Chorley Borough Council,http://statistics.data.gov.uk/id/local-authority/30UE,Central Support Services,1009,PLAN - Planning & Development,Vandalism Repairs,20005,Repairs Maintenance & Alts,5005,Grafitti removal contract August 2023 onging,03/01/2024,0189662,910,Revenue,Graffiti Away Ltd,78340,,
Chorley Borough Council,http://statistics.data.gov.uk/id/local-authority/30UE,Central Support Services,1009,GROW - Commercial Services,General Repairs - Reactive,20004,Repairs Maintenance & Alts,5005,"To survey building for RAAC concrete at;, Civic Office, Union Street, Chorley PR7 1AL",24/01/2024,0187838,525,Revenue,Graham Schofield Associates,17019,,
Chorley Borough Council,http://statistics.data.gov.uk/id/local-authority/30UE,Central Support Services,1009,GROW - Commercial Services,General Repairs - Reactive,20004,Repairs Maintenance & Alts,5005,"To survey building for RAAC concrete at;, All Seasons Leisure Centre, Water Street, Chorley PR7 1EX",24/01/2024,0187839,525,Revenue,Graham Schofield Associates,17019,,
Chorley Borough Council,http://statistics.data.gov.uk/id/local-authority/30UE,Central Support Services,1009,GROW - Commercial Services,General Repairs - Reactive,20004,Repairs Maintenance & Alts,5005,"To survey building for RAAC concrete at;, Clayton Green Leisure Centre, Centre Drive, Clay-le-woods, Chorley PR6 7TL",24/01/2024,0187840,525,Revenue,Graham Schofield Associates,17019,,
Chorley Borough Council,http://statistics.data.gov.uk/id/local-authority/30UE,Corporate Management,1008,GROW - Commercial Services,Publicity - Advertising,40157,Miscellaneous Expenses,5034,"Social media for Market Walk Shopping Centre Chorley., January 24 @ 500 per month",24/01/2024,0190188,500,Revenue,Gravity,77837,,
Chorley Borough Council,http://statistics.data.gov.uk/id/local-authority/30UE,Planning Policy,1092,PLAN - Planning & Development,Professional Fees,14011,Direct Employee Expenses,5001,"DCP Online, COMPASS Online and Planning Resource subscription renewal",10/01/2024,0188745,3000,Revenue,Haymarket Publishing Services Ltd,16347,,
Chorley Borough Council,http://statistics.data.gov.uk/id/local-authority/30UE,Homelessness,1075,EARL - Communities,Grants - Tenant Participation,40142,Grants and Subscriptions,5031,0,17/01/2024,0190222,625,Revenue,Helen Millward,87008,,
Chorley Borough Council,http://statistics.data.gov.uk/id/local-authority/30UE,Corporate Management,1008,EARL - Communities,Other Contributions,40145,Grants and Subscriptions,5031,Raise Purchase Order for Household Support Fund Delivery  2nd payment as per agreement,24/01/2024,0190341,10000,Revenue,Help The Homeless (Chorley),16716,,
Chorley Borough Council,http://statistics.data.gov.uk/id/local-authority/30UE,Central Support Services,1009,CUST - Customer & Digital,Computer Software-Purchase,40100,Communication and Computing,5028,"Access control hardware, Door installation and configuration (including PM), Time recording hardware, Professional Services, Tota",10/01/2024,0188273,5412,Revenue,Hfx Ltd,17164,,
Chorley Borough Council,http://statistics.data.gov.uk/id/local-authority/30UE,Other Short Term Debtors,0,GOVN - Policy & Governance,General Balances,00100,Balance Sheet,Balance,VAT Dec 23,31/01/2024,0190643,5516,Revenue,HM Customs And Excise,17569,,
Chorley Borough Council,http://statistics.data.gov.uk/id/local-authority/30UE,Homelessness,1075,EARL - Communities,Training Course Fees,17010,Indirect Employee Expenses,5002,"Assessing PN & Vulnerability 06/03/2024, 6 Delegates",24/01/2024,0190304,720,Revenue,Housing Reviews Ltd,76269,,
Chorley Borough Council,http://statistics.data.gov.uk/id/local-authority/30UE,Central Support Services,1009,CUST - Customer & Digital,Telephones - Other,40085,Communication and Computing,5028,"Enghouse Survey SW000024, Annual Maintenance EICC Software Assurance Standard, HybrIT Standard",10/01/2024,0188888,8137.5,Revenue,Hybrit LLP,77925,,
Chorley Borough Council,http://statistics.data.gov.uk/id/local-authority/30UE,Central Support Services,1009,CUST - Customer & Digital,Telephones - Other,40085,Communication and Computing,5028,Hybrit SIP charges Nov 23,17/01/2024,0189836,747.5,Revenue,Hybrit LLP,77925,,
Chorley Borough Council,http://statistics.data.gov.uk/id/local-authority/30UE,Central Support Services,1009,CUST - Customer & Digital,Computer Software-Purchase,40100,Communication and Computing,5028,Half Day consultancy,17/01/2024,0188880,600,Revenue,IDOX Software Limited,17542,,
Chorley Borough Council,http://statistics.data.gov.uk/id/local-authority/30UE,Culture & Heritage,1036,GOVN - Policy & Governance,Furniture - Purchase,40012,"Equipment, Furniture & Materia",5023,"8 x OMAR shelf = 720, (there are various different types, the one we want is article number 698.290.83, dimensions 92x36x181cm),",17/01/2024,0183989,633.33,Revenue,Ikea Business Accounts,77877,,
Chorley Borough Council,http://statistics.data.gov.uk/id/local-authority/30UE,Homelessness,1075,EARL - Communities,Rental Bond Scheme,40241,Miscellaneous Expenses,5034,Housing/move on costs,24/01/2024,0190273,1495,Revenue,Inna Korytska,90057,,
Chorley Borough Council,http://statistics.data.gov.uk/id/local-authority/30UE,Central Support Services,1009,CUST - Customer & Digital,Computer Equipment-Maintenance,40105,Communication and Computing,5028,Chorley Council Enghouse Year 2 of 5 maintenance & Managed Services renewal,31/01/2024,0189612,18926.51,Revenue,Insight Direct (UK) LTD,21768,,
Chorley Borough Council,http://statistics.data.gov.uk/id/local-authority/30UE,Central Support Services,1009,PLAN - Planning & Development,Training Course Fees,17010,Indirect Employee Expenses,5002,"Professional Licensing Practitioners Qaulification for NAME REDACTED four days training and exams 22nd February 2024, , 27th Fe",17/01/2024,0190157,578,Revenue,Institute Of Licensing,16987,,
Chorley Borough Council,http://statistics.data.gov.uk/id/local-authority/30UE,Community Development,1097,GROW - Commercial Services,Rent/Hire Of Premises,20017,Premises Rents,5007,Annual Rent for 35-37 Market Street,10/01/2024,0189601,7218.75,Revenue,J R Keys,17124,,
Chorley Borough Council,http://statistics.data.gov.uk/id/local-authority/30UE,Community Development,1097,GROW - Commercial Services,Rent/Hire Of Premises,20017,Premises Rents,5007,,24/01/2024,0190329,1047.24,Revenue,J R Keys,17124,,
Chorley Borough Council,http://statistics.data.gov.uk/id/local-authority/30UE,Central Support Services,1009,EARL - Communities,Children's Activities,40188,Miscellaneous Expenses,5034,Delivery of Chorley HAF programme Christmas 2023 as per grant agreement,10/01/2024,0189840,4266.67,Revenue,Jam Coding Ltd,89306,,
Chorley Borough Council,http://statistics.data.gov.uk/id/local-authority/30UE,Capital,Capital,GOVN - Policy & Governance,Purchase Money,03027,Capital Expenditure,Capital,Purchase of ADDRESS REDACTED,31/01/2024,0187656,150000,Capital,James Stephen Duxbury and Mary Patricia Duxbury,89657,,
Chorley Borough Council,http://statistics.data.gov.uk/id/local-authority/30UE,Homelessness,1075,EARL - Communities,Grants - Tenant Participation,40142,Grants and Subscriptions,5031,0,17/01/2024,0190218,625,Revenue,Jason O`Flaherty,85502,,
Chorley Borough Council,http://statistics.data.gov.uk/id/local-authority/30UE,Service Management & Support,1009,CUST - Customer & Digital,Supplies-Grounds Maintenance,40025,"Equipment, Furniture & Materia",5023,10 @ 7.2m x 225mm x 75mm treated green timber,31/01/2024,0190384,800,Revenue,John H Mayor & Sons Ltd,16635,,
Chorley Borough Council,http://statistics.data.gov.uk/id/local-authority/30UE,Homelessness,1075,EARL - Communities,Grants - Tenant Participation,40142,Grants and Subscriptions,5031,0,17/01/2024,0190215,625,Revenue,Joyce Harasimiuk,85418,,
Chorley Borough Council,http://statistics.data.gov.uk/id/local-authority/30UE,Culture & Heritage,1036,GOVN - Policy & Governance,Arts Development Initiatives,40187,Miscellaneous Expenses,5034,Construction of set piece for Astley Illuminated (crashed spaceship),24/01/2024,0189720,675,Revenue,Junction 4 Productions  (Was Lytham Amateur Operat,89573,,
Chorley Borough Council,http://statistics.data.gov.uk/id/local-authority/30UE,Central Support Services,1009,EARL - Communities,Children's Activities,40188,Miscellaneous Expenses,5034,Provision of activities for Chorley HAF programme Christmas 2023 as agreed with Inspire Youth Zone,10/01/2024,0189879,500,Revenue,K Leisure Ltd,78259,,
Chorley Borough Council,http://statistics.data.gov.uk/id/local-authority/30UE,Planning Policy,1092,GROW - Commercial Services,Uniforms,40039,"Clothing, Uniforms and Laundry",5025,"Please provide the following for bus station staff:, , 9 x Polo Shirt - Black (6L, 3XL) @ 9.95 each, , 3 x standard fleece - Bla",10/01/2024,0188370,678.8,Revenue,Keltic Clothing,21988,,
Chorley Borough Council,http://statistics.data.gov.uk/id/local-authority/30UE,Economic Development,1096,GROW - Commercial Services,Refuse Collection,20037,Cleaning and Domestic Supplies,5012,"Market Walk/Market Walk Extension/Markets/Calico Lounge/Reel Cinema Waste Removal 01.04.2023 - 31.03.2024:, , Market Walk YARD 1 ",24/01/2024,0190063,1836,Revenue,Kenny Waste Management Ltd,88641,,
Chorley Borough Council,http://statistics.data.gov.uk/id/local-authority/30UE,Business Support,1095,GROW - Commercial Services,Refuse Collection,20037,Cleaning and Domestic Supplies,5012,Market Walk YARD 3 - GENERAL WASTE - 8 cubic yard FEL skip x 2,24/01/2024,0190183,545,Revenue,Kenny Waste Management Ltd,88641,,
Chorley Borough Council,http://statistics.data.gov.uk/id/local-authority/30UE,Homelessness,1075,EARL - Communities,Grants - Tenant Participation,40142,Grants and Subscriptions,5031,0,17/01/2024,0190220,625,Revenue,Kevin Eardley,85644,,
Chorley Borough Council,http://statistics.data.gov.uk/id/local-authority/30UE,Capital,Capital,EARL - Communities,Grants,03002,Capital Expenditure,Capital,23/00105/DFG,17/01/2024,0190274,3100,Capital,Kitchen Renovation,90056,,
Chorley Borough Council,http://statistics.data.gov.uk/id/local-authority/30UE,Control Accounts,Control,GOVN - Policy & Governance,General Balances,00100,Balance Sheet,Balance,Labour Councillors Association - Dec 23 Monthly Deductions from Payroll,17/01/2024,0190280,1882.62,Revenue,Labour Councillors Association,17577,,
Chorley Borough Council,http://statistics.data.gov.uk/id/local-authority/30UE,Precepts and Collection Fund,Precepts,GOVN - Policy & Governance,LCC Precept,02009,Precepts & Collection Fund,Precept,LCC C-Tax precept,31/01/2024,0189988,5971419,Revenue,Lancashire County Council,18386,,
Chorley Borough Council,http://statistics.data.gov.uk/id/local-authority/30UE,Collection Fund Revenue Accoun,0,GOVN - Policy & Governance,NNDR County Share,02036,Precepts & Collection Fund,Precept,LCC B-Rates precpt,31/01/2024,0189988,244995,Revenue,Lancashire County Council,18386,,
Chorley Borough Council,http://statistics.data.gov.uk/id/local-authority/30UE,Central Support Services,1009,GROW - Commercial Services,General Repairs - Reactive,20004,Repairs Maintenance & Alts,5005,"Reactive Gas, Air Conditioning and Plumbing Repair Works @ Union Street",10/01/2024,0189753,546,Revenue,Lancashire Gas Services Ltd,78192,,
Chorley Borough Council,http://statistics.data.gov.uk/id/local-authority/30UE,Central Support Services,1009,GROW - Commercial Services,General Repairs - Reactive,20004,Repairs Maintenance & Alts,5005,"Reactive Gas, Air Conditioning and Plumbing Repair Works @ CBC Housing",10/01/2024,0189760,985.87,Revenue,Lancashire Gas Services Ltd,78192,,
Chorley Borough Council,http://statistics.data.gov.uk/id/local-authority/30UE,Central Support Services,1009,GROW - Commercial Services,General Repairs - Reactive,20004,Repairs Maintenance & Alts,5005,"Reactive Gas, Air Conditioning and Plumbing Repair Works @",24/01/2024,0190143,735,Revenue,Lancashire Gas Services Ltd,78192,,
Chorley Borough Council,http://statistics.data.gov.uk/id/local-authority/30UE,Central Support Services,1009,GOVN - Policy & Governance,Consultants` Fees,40077,Services,5027,rechargeable fee,31/01/2024,0190524,520,Revenue,Lancashire Pensions Service BACS ONLY,78212,,
Chorley Borough Council,http://statistics.data.gov.uk/id/local-authority/30UE,Precepts and Collection Fund,Precepts,GOVN - Policy & Governance,LCFA Precept,02011,Precepts & Collection Fund,Precept,LCFA CTAX precepts,31/01/2024,0189990,312066,Revenue,Lancs Combined Fire Authority,17768,,
Chorley Borough Council,http://statistics.data.gov.uk/id/local-authority/30UE,Collection Fund Revenue Accoun,0,GOVN - Policy & Governance,NNDR Fire Share,02037,Precepts & Collection Fund,Precept,LCFA B-Rates precepts,31/01/2024,0189990,27221,Revenue,Lancs Combined Fire Authority,17768,,
Chorley Borough Council,http://statistics.data.gov.uk/id/local-authority/30UE,Planning Policy,1092,PLAN - Planning & Development,Consultants` Fees,40077,Services,5027,Green Belt advice notes,24/01/2024,0188245,2873.25,Revenue,Land Use Consultants (LUC) Ltd,81849,,
Chorley Borough Council,http://statistics.data.gov.uk/id/local-authority/30UE,Central Support Services,1009,GOVN - Policy & Governance,Training Course Fees,17010,Indirect Employee Expenses,5002,Settlement 24/25 & Business Rates Appeals Training 3rd Jan 2024,10/01/2024,0189910,500,Revenue,LG Futures,22551,,
Chorley Borough Council,http://statistics.data.gov.uk/id/local-authority/30UE,Central Support Services,1009,GOVN - Policy & Governance,Service Fees,40056,Services,5027,Driver Management Fee and Electronic Fee - Invoice 28608,17/01/2024,0190117,679.32,Revenue,Licence Bureau Limited,71233,,
Chorley Borough Council,http://statistics.data.gov.uk/id/local-authority/30UE,Central Support Services,1009,GROW - Commercial Services,Planned Maintenance,20006,Repairs Maintenance & Alts,5005,"Fire Risk Assessment at Civic Offices, Union Street., , The costs and scope of the FRA are detailed in the email sent to NAME REDACTED",10/01/2024,0189746,1775,Revenue,Manchester Fire Compliance Ltd,89688,,
Chorley Borough Council,http://statistics.data.gov.uk/id/local-authority/30UE,Homelessness,1075,EARL - Communities,Rental Bond Scheme,40241,Miscellaneous Expenses,5034,housing move costs,03/01/2024,0189606,1106,Revenue,Maryna Kozhukhar,90032,,
Chorley Borough Council,http://statistics.data.gov.uk/id/local-authority/30UE,Central Support Services,1009,GROW - Commercial Services,Planned Maintenance,20006,Repairs Maintenance & Alts,5005,"Legionella Risk Assessment - Astley Hall and Buildings, , Coach House - 180, Hall - 180, Farmhouse - 150",17/01/2024,0189685,510,Revenue,Maxigiene Environmental Services Ltd,67160,,
Chorley Borough Council,http://statistics.data.gov.uk/id/local-authority/30UE,Central Support Services,1009,GROW - Commercial Services,Planned Maintenance,20006,Repairs Maintenance & Alts,5005,"Legionella Risk Assessment - Community Centres, , Astley Village - 180, Lancaster Way (Buckshaw) - 200, Clayton Brook - 200, E",17/01/2024,0189685,1155,Revenue,Maxigiene Environmental Services Ltd,67160,,
Chorley Borough Council,http://statistics.data.gov.uk/id/local-authority/30UE,Central Support Services,1009,GROW - Commercial Services,Consultants` Fees,40077,Services,5027,Excavate trench and locate culvert at Crawford Avenue,10/01/2024,0189683,1320,Revenue,Michael Roe,78294,,
Chorley Borough Council,http://statistics.data.gov.uk/id/local-authority/30UE,Central Support Services,1009,GROW - Commercial Services,General Repairs - Reactive,20004,Repairs Maintenance & Alts,5005,"Car Parks, Reactive Drainage and Groundworks Repair Works",17/01/2024,0189884,1100,Revenue,Michael Roe,78294,,
Chorley Borough Council,http://statistics.data.gov.uk/id/local-authority/30UE,Collection Fund Revenue Accoun,0,GOVN - Policy & Governance,NNDR Central Share,02034,Precepts & Collection Fund,Precept,central share,31/01/2024,0189989,1062692,Revenue,Ministry of Housing Communities & Local Government,16280,,
Chorley Borough Council,http://statistics.data.gov.uk/id/local-authority/30UE,Collection Fund Revenue Accoun,0,GOVN - Policy & Governance,NNDR Central Share,02034,Precepts & Collection Fund,Precept,deficit collection fund,31/01/2024,0189989,26175,Revenue,Ministry of Housing Communities & Local Government,16280,,
Chorley Borough Council,http://statistics.data.gov.uk/id/local-authority/30UE,Private Sector HSG Renewal,1073,EARL - Communities,External Contractor,40198,Miscellaneous Expenses,5034,Ref 201241,17/01/2024,0190019,620,Revenue,Mobility Care Services,70841,,
Chorley Borough Council,http://statistics.data.gov.uk/id/local-authority/30UE,Private Sector HSG Renewal,1073,EARL - Communities,External Contractor,40198,Miscellaneous Expenses,5034,Ref 201251,17/01/2024,0190019,995,Revenue,Mobility Care Services,70841,,
Chorley Borough Council,http://statistics.data.gov.uk/id/local-authority/30UE,Elections,1012,GOVN - Policy & Governance,Computer Software-Maintenance,40107,Communication and Computing,5028,"Provision of Modern Polling at the upcoming General Election - before January 2025, , General Election Service Package",03/01/2024,0189724,10775,Revenue,Modern Democracy Limited,87072,,
Chorley Borough Council,http://statistics.data.gov.uk/id/local-authority/30UE,Elections,1012,GOVN - Policy & Governance,Computer Software-Maintenance,40107,Communication and Computing,5028,IPADS for Borough/PCC elections May 2024 - 10.652.60 plus delivery fee 300.00,24/01/2024,0190386,10952.6,Revenue,Modern Democracy Limited,87072,,
Chorley Borough Council,http://statistics.data.gov.uk/id/local-authority/30UE,Planning Policy,1092,PLAN - Planning & Development,Professional Fees,40063,Services,5027,Written Advice from Counsel - October 2023,10/01/2024,0188043,2250,Revenue,Mr Ian Ponter,19968,,
Chorley Borough Council,http://statistics.data.gov.uk/id/local-authority/30UE,Planning Policy,1092,PLAN - Planning & Development,Professional Fees,40063,Services,5027,perusing papers and advising in conference - prep and con 4 hrs,17/01/2024,0190148,900,Revenue,Mr Ian Ponter,19968,,
Chorley Borough Council,http://statistics.data.gov.uk/id/local-authority/30UE,Homelessness,1075,EARL - Communities,Grants - Tenant Participation,40142,Grants and Subscriptions,5031,0,17/01/2024,0190235,625,Revenue,Mykola Kovalenko,89290,,
Chorley Borough Council,http://statistics.data.gov.uk/id/local-authority/30UE,Development Control,1091,PLAN - Planning & Development,Statutory Notices,40160,Miscellaneous Expenses,5034,Planning Public Notices to appear in the Chorley Guardian April 2023 to March 2024,10/01/2024,0189934,856.29,Revenue,National World Publishing Limited,20072,,
Chorley Borough Council,http://statistics.data.gov.uk/id/local-authority/30UE,Homelessness,1075,EARL - Communities,Grants - Tenant Participation,40142,Grants and Subscriptions,5031,0,17/01/2024,0190227,625,Revenue,Nicholas J Roden,87102,,
Chorley Borough Council,http://statistics.data.gov.uk/id/local-authority/30UE,Tourism,1039,GOVN - Policy & Governance,Professional Fees,40063,Services,5027,equipment hire,10/01/2024,0189745,1000,Revenue,Nigel Stewart,63086,,
Chorley Borough Council,http://statistics.data.gov.uk/id/local-authority/30UE,Service Management & Support,1009,CUST - Customer & Digital,Supplies-Grounds Maintenance,40025,"Equipment, Furniture & Materia",5023,10 x 71107/1-HD 500/850mm Blue 2.8mm Poly & 3.3mm Wire Universal Disk,10/01/2024,0189709,544.2,Revenue,Northern Municipal Spares Ltd,17752,,
Chorley Borough Council,http://statistics.data.gov.uk/id/local-authority/30UE,Service Management & Support,1009,CUST - Customer & Digital,Supplies-Grounds Maintenance,40025,"Equipment, Furniture & Materia",5023,"As per Brush Quote 23,591",31/01/2024,0190130,1041.57,Revenue,Northern Municipal Spares Ltd,17752,,
Chorley Borough Council,http://statistics.data.gov.uk/id/local-authority/30UE,Central Support Services,1009,GROW - Commercial Services,Fixtures & Fittings - Purchase,20027,Fixtures and Fittings,5010,"512-C - Floor standing fabric screen 1500mm high x 1200mm wide - charcoal, , 3 @ 142.00 each + Delivery fee of 75.00",10/01/2024,0189744,501,Revenue,Northern Storage & Interiors Ltd,89601,,
Chorley Borough Council,http://statistics.data.gov.uk/id/local-authority/30UE,Central Support Services,1009,CUST - Customer & Digital,Hire Of Vehicles and Plant,30028,Contrct Hire & Operating Lease,5018,Vehicle hire: 3.5t Luton Van with tail-lift (April 2023- March 2024) Current Reg: VIN REDACTED,10/01/2024,0189866,766.08,Revenue,Northgate Vehicle Hire (NW) Ltd,17360,,
Chorley Borough Council,http://statistics.data.gov.uk/id/local-authority/30UE,Central Support Services,1009,CUST - Customer & Digital,Hire Of Vehicles and Plant,30028,Contrct Hire & Operating Lease,5018,Vehicle hire: 3.5t Luton Van with tail-lift (April 2023- March 2024) Current Reg: VIN REDACTED,31/01/2024,0190533,766.08,Revenue,Northgate Vehicle Hire (NW) Ltd,17360,,
Chorley Borough Council,http://statistics.data.gov.uk/id/local-authority/30UE,Service Management Support,1009,GROW - Commercial Services,Electricity,20013,Energy Costs,5006,0,10/01/2024,0189965,572.76,Revenue,Npower Commercial Gas,16814,,
Chorley Borough Council,http://statistics.data.gov.uk/id/local-authority/30UE,Open Spaces,1038,GROW - Commercial Services,Electricity,20013,Energy Costs,5006,0,10/01/2024,0189968,1177.38,Revenue,Npower Commercial Gas,16814,,
Chorley Borough Council,http://statistics.data.gov.uk/id/local-authority/30UE,Open Spaces,1038,GROW - Commercial Services,Electricity,20013,Energy Costs,5006,0,10/01/2024,0189970,2906.4,Revenue,Npower Commercial Gas,16814,,
Chorley Borough Council,http://statistics.data.gov.uk/id/local-authority/30UE,Homelessness,1075,GROW - Commercial Services,Electricity,20013,Energy Costs,5006,0,10/01/2024,0189991,547.59,Revenue,Npower Commercial Gas,16814,,
Chorley Borough Council,http://statistics.data.gov.uk/id/local-authority/30UE,Homelessness,1075,GROW - Commercial Services,Electricity,20013,Energy Costs,5006,0,10/01/2024,0189992,1177.07,Revenue,Npower Commercial Gas,16814,,
Chorley Borough Council,http://statistics.data.gov.uk/id/local-authority/30UE,Homelessness,1075,GROW - Commercial Services,Electricity,20013,Energy Costs,5006,0,10/01/2024,0189993,1002.6,Revenue,Npower Commercial Gas,16814,,
Chorley Borough Council,http://statistics.data.gov.uk/id/local-authority/30UE,Homelessness,1075,GROW - Commercial Services,Electricity,20013,Energy Costs,5006,0,10/01/2024,0189994,990.32,Revenue,Npower Commercial Gas,16814,,
Chorley Borough Council,http://statistics.data.gov.uk/id/local-authority/30UE,Homelessness,1075,GROW - Commercial Services,Electricity,20013,Energy Costs,5006,0,10/01/2024,0189995,1264.17,Revenue,Npower Commercial Gas,16814,,
Chorley Borough Council,http://statistics.data.gov.uk/id/local-authority/30UE,Homelessness,1075,GROW - Commercial Services,Electricity,20013,Energy Costs,5006,0,10/01/2024,0189996,550.81,Revenue,Npower Commercial Gas,16814,,
Chorley Borough Council,http://statistics.data.gov.uk/id/local-authority/30UE,Homelessness,1075,GROW - Commercial Services,Electricity,20013,Energy Costs,5006,0,10/01/2024,0189997,1482.28,Revenue,Npower Commercial Gas,16814,,
Chorley Borough Council,http://statistics.data.gov.uk/id/local-authority/30UE,Homelessness,1075,GROW - Commercial Services,Electricity,20013,Energy Costs,5006,0,10/01/2024,0189998,1165.28,Revenue,Npower Commercial Gas,16814,,
Chorley Borough Council,http://statistics.data.gov.uk/id/local-authority/30UE,Homelessness,1075,GROW - Commercial Services,Electricity,20013,Energy Costs,5006,0,10/01/2024,0189999,1258.2,Revenue,Npower Commercial Gas,16814,,
Chorley Borough Council,http://statistics.data.gov.uk/id/local-authority/30UE,Homelessness,1075,GROW - Commercial Services,Electricity,20013,Energy Costs,5006,0,10/01/2024,0190000,1535.61,Revenue,Npower Commercial Gas,16814,,
Chorley Borough Council,http://statistics.data.gov.uk/id/local-authority/30UE,Homelessness,1075,GROW - Commercial Services,Electricity,20013,Energy Costs,5006,0,10/01/2024,0190001,1368.88,Revenue,Npower Commercial Gas,16814,,
Chorley Borough Council,http://statistics.data.gov.uk/id/local-authority/30UE,Homelessness,1075,GROW - Commercial Services,Electricity,20013,Energy Costs,5006,0,10/01/2024,0190002,922.76,Revenue,Npower Commercial Gas,16814,,
Chorley Borough Council,http://statistics.data.gov.uk/id/local-authority/30UE,Homelessness,1075,GROW - Commercial Services,Electricity,20013,Energy Costs,5006,0,10/01/2024,0190003,608.47,Revenue,Npower Commercial Gas,16814,,
Chorley Borough Council,http://statistics.data.gov.uk/id/local-authority/30UE,Homelessness,1075,GROW - Commercial Services,Electricity,20013,Energy Costs,5006,0,10/01/2024,0190004,607.17,Revenue,Npower Commercial Gas,16814,,
Chorley Borough Council,http://statistics.data.gov.uk/id/local-authority/30UE,Homelessness,1075,GROW - Commercial Services,Electricity,20013,Energy Costs,5006,0,10/01/2024,0190005,588.7,Revenue,Npower Commercial Gas,16814,,
Chorley Borough Council,http://statistics.data.gov.uk/id/local-authority/30UE,Homelessness,1075,GROW - Commercial Services,Electricity,20013,Energy Costs,5006,0,10/01/2024,0190008,1432.89,Revenue,Npower Commercial Gas,16814,,
Chorley Borough Council,http://statistics.data.gov.uk/id/local-authority/30UE,Homelessness,1075,GROW - Commercial Services,Electricity,20013,Energy Costs,5006,0,10/01/2024,0190009,1189.22,Revenue,Npower Commercial Gas,16814,,
Chorley Borough Council,http://statistics.data.gov.uk/id/local-authority/30UE,Homelessness,1075,GROW - Commercial Services,Electricity,20013,Energy Costs,5006,0,10/01/2024,0190010,1230.46,Revenue,Npower Commercial Gas,16814,,
Chorley Borough Council,http://statistics.data.gov.uk/id/local-authority/30UE,Homelessness,1075,GROW - Commercial Services,Electricity,20013,Energy Costs,5006,0,10/01/2024,0190011,998.62,Revenue,Npower Commercial Gas,16814,,
Chorley Borough Council,http://statistics.data.gov.uk/id/local-authority/30UE,Homelessness,1075,GROW - Commercial Services,Electricity,20013,Energy Costs,5006,0,10/01/2024,0190012,1171.56,Revenue,Npower Commercial Gas,16814,,
Chorley Borough Council,http://statistics.data.gov.uk/id/local-authority/30UE,Homelessness,1075,GROW - Commercial Services,Electricity,20013,Energy Costs,5006,0,10/01/2024,0190013,1203.02,Revenue,Npower Commercial Gas,16814,,
Chorley Borough Council,http://statistics.data.gov.uk/id/local-authority/30UE,Homelessness,1075,GROW - Commercial Services,Electricity,20013,Energy Costs,5006,0,10/01/2024,0190014,1388.89,Revenue,Npower Commercial Gas,16814,,
Chorley Borough Council,http://statistics.data.gov.uk/id/local-authority/30UE,Homelessness,1075,GROW - Commercial Services,Electricity,20013,Energy Costs,5006,0,10/01/2024,0190015,916.16,Revenue,Npower Commercial Gas,16814,,
Chorley Borough Council,http://statistics.data.gov.uk/id/local-authority/30UE,Homelessness,1075,GROW - Commercial Services,Electricity,20013,Energy Costs,5006,0,10/01/2024,0190016,994.02,Revenue,Npower Commercial Gas,16814,,
Chorley Borough Council,http://statistics.data.gov.uk/id/local-authority/30UE,Homelessness,1075,GROW - Commercial Services,Electricity,20013,Energy Costs,5006,0,10/01/2024,0190017,862.81,Revenue,Npower Commercial Gas,16814,,
Chorley Borough Council,http://statistics.data.gov.uk/id/local-authority/30UE,Homelessness,1075,GROW - Commercial Services,Electricity,20013,Energy Costs,5006,0,10/01/2024,0190024,662.46,Revenue,Npower Commercial Gas,16814,,
Chorley Borough Council,http://statistics.data.gov.uk/id/local-authority/30UE,Business Support,1095,GROW - Commercial Services,Electricity,20013,Energy Costs,5006,0,10/01/2024,0190027,1220.76,Revenue,Npower Commercial Gas,16814,,
Chorley Borough Council,http://statistics.data.gov.uk/id/local-authority/30UE,Recreation & Sport,1037,GROW - Commercial Services,Electricity,20013,Energy Costs,5006,0,10/01/2024,0190029,3263.33,Revenue,Npower Commercial Gas,16814,,
Chorley Borough Council,http://statistics.data.gov.uk/id/local-authority/30UE,Business Support,1095,GROW - Commercial Services,Electricity,20013,Energy Costs,5006,0,10/01/2024,0190036,2477.89,Revenue,Npower Commercial Gas,16814,,
Chorley Borough Council,http://statistics.data.gov.uk/id/local-authority/30UE,Parking Services,1066,GROW - Commercial Services,Electricity,20013,Energy Costs,5006,0,10/01/2024,0190038,963.51,Revenue,Npower Commercial Gas,16814,,
Chorley Borough Council,http://statistics.data.gov.uk/id/local-authority/30UE,Recreation & Sport,1037,GROW - Commercial Services,Electricity,20013,Energy Costs,5006,0,10/01/2024,0190040,3803.22,Revenue,Npower Commercial Gas,16814,,
Chorley Borough Council,http://statistics.data.gov.uk/id/local-authority/30UE,Parking Services,1066,GROW - Commercial Services,Electricity,20013,Energy Costs,5006,0,10/01/2024,0190041,6593.55,Revenue,Npower Commercial Gas,16814,,
Chorley Borough Council,http://statistics.data.gov.uk/id/local-authority/30UE,Parking Services,1066,GROW - Commercial Services,Electricity,20013,Energy Costs,5006,0,10/01/2024,0190043,1685.72,Revenue,Npower Commercial Gas,16814,,
Chorley Borough Council,http://statistics.data.gov.uk/id/local-authority/30UE,Central Support Services,1009,GROW - Commercial Services,Electricity,20013,Energy Costs,5006,0,10/01/2024,0190045,3479.99,Revenue,Npower Commercial Gas,16814,,
Chorley Borough Council,http://statistics.data.gov.uk/id/local-authority/30UE,Recreation & Sport,1037,GROW - Commercial Services,Electricity,20013,Energy Costs,5006,0,10/01/2024,0190051,787.32,Revenue,Npower Commercial Gas,16814,,
Chorley Borough Council,http://statistics.data.gov.uk/id/local-authority/30UE,Business Support,1095,GROW - Commercial Services,Electricity,20013,Energy Costs,5006,0,10/01/2024,0190053,12723.42,Revenue,Npower Commercial Gas,16814,,
Chorley Borough Council,http://statistics.data.gov.uk/id/local-authority/30UE,Central Support Services,1009,GROW - Commercial Services,Electricity,20013,Energy Costs,5006,0,10/01/2024,0190054,8689.71,Revenue,Npower Commercial Gas,16814,,
Chorley Borough Council,http://statistics.data.gov.uk/id/local-authority/30UE,Recreation & Sport,1037,GROW - Commercial Services,Electricity,20013,Energy Costs,5006,0,10/01/2024,0190055,18891.92,Revenue,Npower Commercial Gas,16814,,
Chorley Borough Council,http://statistics.data.gov.uk/id/local-authority/30UE,Central Support Services,1009,GROW - Commercial Services,Electricity,20013,Energy Costs,5006,0,10/01/2024,0190056,2247.63,Revenue,Npower Commercial Gas,16814,,
Chorley Borough Council,http://statistics.data.gov.uk/id/local-authority/30UE,Central Support Services,1009,GROW - Commercial Services,Electricity,20013,Energy Costs,5006,0,10/01/2024,0190057,8325.71,Revenue,Npower Commercial Gas,16814,,
Chorley Borough Council,http://statistics.data.gov.uk/id/local-authority/30UE,Service Management Support,1009,GROW - Commercial Services,Electricity,20013,Energy Costs,5006,1 Dec 2023 to 31 Dec 2023,24/01/2024,0190404,556.48,Revenue,Npower Commercial Gas,16814,,
Chorley Borough Council,http://statistics.data.gov.uk/id/local-authority/30UE,Service Management Support,1009,GROW - Commercial Services,Electricity,20013,Energy Costs,5006,1 Dec 2023 to 31 Dec 2023,24/01/2024,0190405,2747.38,Revenue,Npower Commercial Gas,16814,,
Chorley Borough Council,http://statistics.data.gov.uk/id/local-authority/30UE,Service Management Support,1009,GROW - Commercial Services,Electricity,20013,Energy Costs,5006,1 Dec 2023 to 31 Dec 2023,24/01/2024,0190406,1560.73,Revenue,Npower Commercial Gas,16814,,
Chorley Borough Council,http://statistics.data.gov.uk/id/local-authority/30UE,Economic Development,1096,GROW - Commercial Services,Electricity,20013,Energy Costs,5006,1 Dec 2023 to 31 Dec 2023,24/01/2024,0190410,742.46,Revenue,Npower Commercial Gas,16814,,
Chorley Borough Council,http://statistics.data.gov.uk/id/local-authority/30UE,Economic Development,1096,GROW - Commercial Services,Electricity,20013,Energy Costs,5006,1 Dec 2023 to 31 Dec 2023,24/01/2024,0190411,1583.49,Revenue,Npower Commercial Gas,16814,,
Chorley Borough Council,http://statistics.data.gov.uk/id/local-authority/30UE,Economic Development,1096,GROW - Commercial Services,Electricity,20013,Energy Costs,5006,1 Dec 2023 to 31 Dec 2023,24/01/2024,0190413,13534.82,Revenue,Npower Commercial Gas,16814,,
Chorley Borough Council,http://statistics.data.gov.uk/id/local-authority/30UE,Economic Development,1096,GROW - Commercial Services,Electricity,20013,Energy Costs,5006,1 Oct 2023 to 31 Dec 2023,24/01/2024,0190423,2725.31,Revenue,Npower Commercial Gas,16814,,
Chorley Borough Council,http://statistics.data.gov.uk/id/local-authority/30UE,Economic Development,1096,GROW - Commercial Services,Electricity,20013,Energy Costs,5006,1 Oct 2023 to 31 Dec 2023,24/01/2024,0190425,1113.97,Revenue,Npower Commercial Gas,16814,,
Chorley Borough Council,http://statistics.data.gov.uk/id/local-authority/30UE,Economic Development,1096,GROW - Commercial Services,Electricity,20013,Energy Costs,5006,1 Dec 2023 to 31 Dec 2023,24/01/2024,0190427,8642.66,Revenue,Npower Commercial Gas,16814,,
Chorley Borough Council,http://statistics.data.gov.uk/id/local-authority/30UE,Economic Development,1096,GROW - Commercial Services,Electricity,20013,Energy Costs,5006,1 Dec 2023 to 31 Dec 2023,24/01/2024,0190429,6979.63,Revenue,Npower Commercial Gas,16814,,
Chorley Borough Council,http://statistics.data.gov.uk/id/local-authority/30UE,Economic Development,1096,GROW - Commercial Services,Electricity,20013,Energy Costs,5006,1 Dec 2023 to 31 Dec 2023,24/01/2024,0190430,6423.9,Revenue,Npower Commercial Gas,16814,,
Chorley Borough Council,http://statistics.data.gov.uk/id/local-authority/30UE,Economic Development,1096,GROW - Commercial Services,Electricity,20013,Energy Costs,5006,1 Dec 2023 to 31 Dec 2023,24/01/2024,0190431,3611.76,Revenue,Npower Commercial Gas,16814,,
Chorley Borough Council,http://statistics.data.gov.uk/id/local-authority/30UE,Economic Development,1096,GROW - Commercial Services,Electricity,20013,Energy Costs,5006,1 Dec 2023 to 31 Dec 2023,24/01/2024,0190435,1043.01,Revenue,Npower Commercial Gas,16814,,
Chorley Borough Council,http://statistics.data.gov.uk/id/local-authority/30UE,Economic Development,1096,GROW - Commercial Services,Electricity,20013,Energy Costs,5006,1 Dec 2023 to 31 Dec 2023,24/01/2024,0190441,582.43,Revenue,Npower Commercial Gas,16814,,
Chorley Borough Council,http://statistics.data.gov.uk/id/local-authority/30UE,Economic Development,1096,GROW - Commercial Services,Electricity,20013,Energy Costs,5006,1 Dec 2023 to 31 Dec 2023,24/01/2024,0190443,3239.99,Revenue,Npower Commercial Gas,16814,,
Chorley Borough Council,http://statistics.data.gov.uk/id/local-authority/30UE,Economic Development,1096,GROW - Commercial Services,Electricity,20013,Energy Costs,5006,1 Dec 2023 to 31 Dec 2023,24/01/2024,0190447,3471.4,Revenue,Npower Commercial Gas,16814,,
Chorley Borough Council,http://statistics.data.gov.uk/id/local-authority/30UE,Economic Development,1096,GROW - Commercial Services,Electricity,20013,Energy Costs,5006,1 Dec 2023 to 31 Dec 2023,24/01/2024,0190448,3467.59,Revenue,Npower Commercial Gas,16814,,
Chorley Borough Council,http://statistics.data.gov.uk/id/local-authority/30UE,Economic Development,1096,GROW - Commercial Services,Electricity,20013,Energy Costs,5006,1 Dec 2023 to 31 Dec 2023,24/01/2024,0190451,19128.27,Revenue,Npower Commercial Gas,16814,,
Chorley Borough Council,http://statistics.data.gov.uk/id/local-authority/30UE,Economic Development,1096,GROW - Commercial Services,Electricity,20013,Energy Costs,5006,1 Dec 2023 to 31 Dec 2023,24/01/2024,0190452,852.62,Revenue,Npower Commercial Gas,16814,,
Chorley Borough Council,http://statistics.data.gov.uk/id/local-authority/30UE,Economic Development,1096,GROW - Commercial Services,Electricity,20013,Energy Costs,5006,1 Dec 2023 to 31 Dec 2023,24/01/2024,0190453,1488.85,Revenue,Npower Commercial Gas,16814,,
Chorley Borough Council,http://statistics.data.gov.uk/id/local-authority/30UE,Economic Development,1096,GROW - Commercial Services,Electricity,20013,Energy Costs,5006,1 Dec 2023 to 31 Dec 2023,24/01/2024,0190454,1708.68,Revenue,Npower Commercial Gas,16814,,
Chorley Borough Council,http://statistics.data.gov.uk/id/local-authority/30UE,Business Support,1095,GROW - Commercial Services,Electricity,20013,Energy Costs,5006,1 Dec 2023 to 31 Dec 2023,31/01/2024,0190487,4527.43,Revenue,Npower Commercial Gas,16814,,
Chorley Borough Council,http://statistics.data.gov.uk/id/local-authority/30UE,Business Support,1095,GROW - Commercial Services,Electricity,20013,Energy Costs,5006,1 Oct 2021 to 31 Oct 2021,31/01/2024,0190488,1168.52,Revenue,Npower Commercial Gas,16814,,
Chorley Borough Council,http://statistics.data.gov.uk/id/local-authority/30UE,Business Support,1095,GROW - Commercial Services,Electricity,20013,Energy Costs,5006,1 Jun 2023 to 30 Jun 2023,31/01/2024,0190489,4527.9,Revenue,Npower Commercial Gas,16814,,
Chorley Borough Council,http://statistics.data.gov.uk/id/local-authority/30UE,Business Support,1095,GROW - Commercial Services,Electricity,20013,Energy Costs,5006,1 Jul 2023 to 31 Jul 2023,31/01/2024,0190490,4449.45,Revenue,Npower Commercial Gas,16814,,
Chorley Borough Council,http://statistics.data.gov.uk/id/local-authority/30UE,Business Support,1095,GROW - Commercial Services,Electricity,20013,Energy Costs,5006,1 Aug 2023 to 31 Aug 2023,31/01/2024,0190491,4474.12,Revenue,Npower Commercial Gas,16814,,
Chorley Borough Council,http://statistics.data.gov.uk/id/local-authority/30UE,Business Support,1095,GROW - Commercial Services,Electricity,20013,Energy Costs,5006,1 Oct 2023 to 31 Oct 2023,31/01/2024,0190492,4362.52,Revenue,Npower Commercial Gas,16814,,
Chorley Borough Council,http://statistics.data.gov.uk/id/local-authority/30UE,Business Support,1095,GROW - Commercial Services,Electricity,20013,Energy Costs,5006,1 Nov 2023 to 30 Nov 2023,31/01/2024,0190493,4296.37,Revenue,Npower Commercial Gas,16814,,
Chorley Borough Council,http://statistics.data.gov.uk/id/local-authority/30UE,Parking Services,1066,GROW - Commercial Services,External Contractors,50008,Private Contractors,5042,"Provision of off street car park enforcement for period 01.04.23 - 31.03.24, , Rate: 18.40 ph, , Monday - Saturday Parking Atten",24/01/2024,0190172,4489.6,Revenue,NSL Limited,67253,,
Chorley Borough Council,http://statistics.data.gov.uk/id/local-authority/30UE,Central Support Services,1009,GROW - Commercial Services,General Repairs - Reactive,20004,Repairs Maintenance & Alts,5005,To carry out fire / stopping / air testing breakdowns in the ground floor server room at Union Street Office,10/01/2024,0189859,2100,Revenue,Optimum commercial interiors,87262,,
Chorley Borough Council,http://statistics.data.gov.uk/id/local-authority/30UE,Capital,Capital,GROW - Commercial Services,Other Capital Related Fees,03024,Capital Expenditure,Capital,Strip and decorate internal rooms at ADDRESS REDACTED,17/01/2024,0190116,4977,Capital,Optimum commercial interiors,87262,,
Chorley Borough Council,http://statistics.data.gov.uk/id/local-authority/30UE,Business Support,1095,GROW - Commercial Services,Electricity,20013,Energy Costs,5006,0,10/01/2024,0189950,631.99,Revenue,Opus Energy Ltd,65093,,
Chorley Borough Council,http://statistics.data.gov.uk/id/local-authority/30UE,Economic Development,1096,GROW - Commercial Services,Cleaning Materials,40019,"Equipment, Furniture & Materia",5023,Cleaning order for Market,10/01/2024,0189628,769.43,Revenue,Pattersons Holdings (Bristol),77537,,
Chorley Borough Council,http://statistics.data.gov.uk/id/local-authority/30UE,Business Support,1095,GROW - Commercial Services,Cleaning Materials,40019,"Equipment, Furniture & Materia",5023,AA301- Mini Smart One Mini Toilet Rolls 2 ply x12,24/01/2024,0189782,544.44,Revenue,Pattersons Holdings (Bristol),77537,,
Chorley Borough Council,http://statistics.data.gov.uk/id/local-authority/30UE,Planning Policy,1092,GROW - Commercial Services,Cleaning Materials,40019,"Equipment, Furniture & Materia",5023,Cleaning order for Bus Station,31/01/2024,0190398,563.88,Revenue,Pattersons Holdings (Bristol),77537,,
Chorley Borough Council,http://statistics.data.gov.uk/id/local-authority/30UE,Corporate Management,1008,GOVN - Policy & Governance,Agency Staff,13000,Direct Employee Expenses,5001,Charges for Interim Deputy Chief Executive,17/01/2024,0189933,13216,Revenue,Penna Plc,77833,,
Chorley Borough Council,http://statistics.data.gov.uk/id/local-authority/30UE,Capital,Capital,GROW - Commercial Services,Main Contractor,03007,Capital Expenditure,Capital,Supply and fit fire extinguishers at King George V sports pitches.,03/01/2024,0189630,532.15,Capital,Pennine Fire & Safety Limited,69643,,
Chorley Borough Council,http://statistics.data.gov.uk/id/local-authority/30UE,Central Support Services,1009,GOVN - Policy & Governance,HR Approved Occ Health Fees,15201,Indirect Employee Expenses,5002,Flu Vouchers for Chorley,17/01/2024,0189819,900,Revenue,People Asset Management Limited,76487,,
Chorley Borough Council,http://statistics.data.gov.uk/id/local-authority/30UE,Central Support Services,1009,CUST - Customer & Digital,Computer Software-Maintenance,40107,Communication and Computing,5028,GRN was for 12500.00 for this invoice and inv OP/1992674 but was fully matched instead of splitting,10/01/2024,0188591,2000,Revenue,Phoenix Software Ltd,17046,,
Chorley Borough Council,http://statistics.data.gov.uk/id/local-authority/30UE,Central Support Services,1009,CUST - Customer & Digital,Computer Software-Maintenance,40107,Communication and Computing,5028,SharePoint work as detailed in ROM,10/01/2024,0189757,10500,Revenue,Phoenix Software Ltd,17046,,
Chorley Borough Council,http://statistics.data.gov.uk/id/local-authority/30UE,Service Management & Support,1009,CUST - Customer & Digital,Diesel/Derv,30007,Direct Transport Costs,5016,7000 litres of road diesel @112.97ppl,31/01/2024,0190368,7907.9,Revenue,Pilkington Oils,18075,,
Chorley Borough Council,http://statistics.data.gov.uk/id/local-authority/30UE,Business Support,1095,GOVN - Policy & Governance,UKSPF Funded Business Events,40258,Miscellaneous Expenses,5034,Pink Link for the EVA Awards Sponsorship 2024 - �Best Business category,10/01/2024,0189883,4000,Revenue,Pink Link Ladies Ltd,66886,,
Chorley Borough Council,http://statistics.data.gov.uk/id/local-authority/30UE,Central Support Services,1009,CUST - Customer & Digital,Consultants` Fees,40077,Services,5027,"Contract work to assist with planning enforcement, Contractor: NAME REDACTED Time period: 1 April 2023  31 March 2024",10/01/2024,0189882,2257.5,Revenue,Planning and PACE Solutions Ltd,82083,,
Chorley Borough Council,http://statistics.data.gov.uk/id/local-authority/30UE,Central Support Services,1009,CUST - Customer & Digital,Consultants` Fees,40077,Services,5027,"Contract work to assist with planning enforcement, Contractor: NAME REDACTED Time period: 1 April 2023  31 March 2024",31/01/2024,0190369,1462,Revenue,Planning and PACE Solutions Ltd,82083,,
Chorley Borough Council,http://statistics.data.gov.uk/id/local-authority/30UE,Precepts and Collection Fund,Precepts,GOVN - Policy & Governance,LPA Precept,02010,Precepts & Collection Fund,Precept,PCC Council Tax Precept,31/01/2024,0189932,953889,Revenue,Police & Crime Commissioner,17438,,
Chorley Borough Council,http://statistics.data.gov.uk/id/local-authority/30UE,Central Support Services,1009,GOVN - Policy & Governance,Publicity - Advertising,40157,Miscellaneous Expenses,5034,drop banner removals at town hall,17/01/2024,0188608,586.65,Revenue,Poppy Signs Ltd,21898,,
Chorley Borough Council,http://statistics.data.gov.uk/id/local-authority/30UE,Corporate Management,1008,GROW - Commercial Services,Exhibitions & Special Events,40158,Miscellaneous Expenses,5034,"As per quote ref: MS19774/2. Re: Santa Post Box 2023, Take the display out of stock at Poppy Signs and re-install exactly as last",03/01/2024,0189425,811.9,Revenue,Poppy Signs Ltd,21898,,
Chorley Borough Council,http://statistics.data.gov.uk/id/local-authority/30UE,Development Control,1091,PLAN - Planning & Development,Agency Staff,13000,Direct Employee Expenses,5001,"Planning consulting advice, including the consideration and determination of planning applications, Time period: 24 July 2023 - 3",10/01/2024,0189858,1665,Revenue,Power Planning Consulting Ltd,89435,,
Chorley Borough Council,http://statistics.data.gov.uk/id/local-authority/30UE,Development Control,1091,PLAN - Planning & Development,Agency Staff,13000,Direct Employee Expenses,5001,"Planning consulting advice, including the consideration and determination of planning applications, Time period: 24 July 2023 - 3",10/01/2024,0189881,1665,Revenue,Power Planning Consulting Ltd,89435,,
Chorley Borough Council,http://statistics.data.gov.uk/id/local-authority/30UE,Development Control,1091,PLAN - Planning & Development,Agency Staff,13000,Direct Employee Expenses,5001,"Planning consulting advice, including the consideration and determination of planning applications, Time period: 24 July 2023 - 3",17/01/2024,0190135,1665,Revenue,Power Planning Consulting Ltd,89435,,
Chorley Borough Council,http://statistics.data.gov.uk/id/local-authority/30UE,Development Control,1091,PLAN - Planning & Development,Agency Staff,13000,Direct Employee Expenses,5001,"Contract work to assist with planning application processing- NAME REDACTED, 01/01/2024-31/03/2024",17/01/2024,0190158,1395,Revenue,Power Planning Consulting Ltd,89435,,
Chorley Borough Council,http://statistics.data.gov.uk/id/local-authority/30UE,Development Control,1091,PLAN - Planning & Development,Agency Staff,13000,Direct Employee Expenses,5001,"Planning consulting advice, including the consideration and determination of planning applications, Time period: 24 July 2023 - 3",17/01/2024,0190168,1665,Revenue,Power Planning Consulting Ltd,89435,,
Chorley Borough Council,http://statistics.data.gov.uk/id/local-authority/30UE,Development Control,1091,PLAN - Planning & Development,Agency Staff,13000,Direct Employee Expenses,5001,"Contract work to assist with planning application processing- NAME REDACTED, 01/01/2024-31/03/2024",24/01/2024,0190363,1665,Revenue,Power Planning Consulting Ltd,89435,,
Chorley Borough Council,http://statistics.data.gov.uk/id/local-authority/30UE,Culture & Heritage,1036,GOVN - Policy & Governance,Other Licence Fees,40231,Miscellaneous Expenses,5034,"As per quote on customer account CUS-01357889., , Royalties for music used on site at Astley Hall, Chorley., , Total ex VAT 616.",24/01/2024,0190352,616.49,Revenue,PPL PRS Ltd,77455,,
Chorley Borough Council,http://statistics.data.gov.uk/id/local-authority/30UE,Capital,Capital,EARL - Communities,Grants,03002,Capital Expenditure,Capital,Handyperson service Q4 2023/2024 payable from DFG Budget,24/01/2024,0190361,6250,Capital,Preston Care and Repair,50018,,
Chorley Borough Council,http://statistics.data.gov.uk/id/local-authority/30UE,Other Short Term Creditors,0,GOVN - Policy & Governance,General Balances,00100,Balance Sheet,Balance,Prudential - Dec 23 Monthly Deductions from payroll,17/01/2024,0190281,1700,Revenue,PRUDENTIAL,18178,,
Chorley Borough Council,http://statistics.data.gov.uk/id/local-authority/30UE,Other Short Term Creditors,0,GOVN - Policy & Governance,General Balances,00100,Balance Sheet,Balance,Prudential AVC Wise - Dec 23 Monthly Deductions from payroll,17/01/2024,0190282,12247.38,Revenue,PRUDENTIAL,18178,,
Chorley Borough Council,http://statistics.data.gov.uk/id/local-authority/30UE,Interest Payable on Debt,1020,GOVN - Policy & Governance,Interest Payable,09009,Interest Payments,5067,interest LN506764,31/01/2024,0190660,28875,Revenue,Public Works Loans Board,21480,,
Chorley Borough Council,http://statistics.data.gov.uk/id/local-authority/30UE,Interest Payable on Debt,1020,GOVN - Policy & Governance,Interest Payable,09009,Interest Payments,5067,interest LN506766,31/01/2024,0190660,13357.14,Revenue,Public Works Loans Board,21480,,
Chorley Borough Council,http://statistics.data.gov.uk/id/local-authority/30UE,Homelessness,1075,EARL - Communities,Bed and Breakfast Accommodation,40232,Miscellaneous Expenses,5034,"TA , 173615/173699 01/11/23-17/11/23, 157226 01/11/23-29/11/23, 142705 27/11/23-04/12/23, 165768 17/11/23-24/11/23, 174415 02/11/",03/01/2024,0189309,4982.61,Revenue,Purple Roomz,84223,,
Chorley Borough Council,http://statistics.data.gov.uk/id/local-authority/30UE,Homelessness,1075,EARL - Communities,Bed and Breakfast Accommodation,40232,Miscellaneous Expenses,5034,"Homeless Emergency Placements, Dec 2023",17/01/2024,0190166,1276.41,Revenue,Purple Roomz,84223,,
Chorley Borough Council,http://statistics.data.gov.uk/id/local-authority/30UE,Regulatory Services,1048,PLAN - Planning & Development,Taxi Testing & Vehicle Safety Report,40234,Services,5027,0,17/01/2024,0189959,584.35,Revenue,R.C.J Motors,63625,,
Chorley Borough Council,http://statistics.data.gov.uk/id/local-authority/30UE,Central Support Services,1009,EARL - Communities,Misc Expenses,40200,Miscellaneous Expenses,5034,Alleygates for Devonshire/Lawrence Road,10/01/2024,0189838,4464,Revenue,REMEC Engineering Services (Burnley) Limited,83988,,
Chorley Borough Council,http://statistics.data.gov.uk/id/local-authority/30UE,Homelessness,1075,EARL - Communities,Other Contributions,40145,Grants and Subscriptions,5031,ADDRESS REDACTED - loft insulation and hatch,31/01/2024,0189374,1690.2,Revenue,Rhea Projects Ltd,77753,,
Chorley Borough Council,http://statistics.data.gov.uk/id/local-authority/30UE,Homelessness,1075,EARL - Communities,Other Contributions,40145,Grants and Subscriptions,5031,Boiler replacement - ADDRESS REDACTED,10/01/2024,0189796,1979,Revenue,Rhea Projects Ltd,77753,,
Chorley Borough Council,http://statistics.data.gov.uk/id/local-authority/30UE,Homelessness,1075,EARL - Communities,Other Contributions,40145,Grants and Subscriptions,5031,Boiler replacement - ADDRESS REDACTED,31/01/2024,0190521,2100,Revenue,Rhea Projects Ltd,77753,,
Chorley Borough Council,http://statistics.data.gov.uk/id/local-authority/30UE,Homelessness,1075,EARL - Communities,Other Contributions,40145,Grants and Subscriptions,5031,Boiler replacement - ADDRESS REDACTED,31/01/2024,0190522,2350,Revenue,Rhea Projects Ltd,77753,,
Chorley Borough Council,http://statistics.data.gov.uk/id/local-authority/30UE,Homelessness,1075,EARL - Communities,Other Contributions,40145,Grants and Subscriptions,5031,Boiler replacement - ADDRESS REDACTED,31/01/2024,0190523,1970,Revenue,Rhea Projects Ltd,77753,,
Chorley Borough Council,http://statistics.data.gov.uk/id/local-authority/30UE,Homelessness,1075,EARL - Communities,Other Contributions,40145,Grants and Subscriptions,5031,Boiler replacement - ADDRESS REDACTED,31/01/2024,0190526,1970,Revenue,Rhea Projects Ltd,77753,,
Chorley Borough Council,http://statistics.data.gov.uk/id/local-authority/30UE,Homelessness,1075,EARL - Communities,Other Contributions,40145,Grants and Subscriptions,5031,boiler quote - ADDRESS REDACTED,31/01/2024,0190549,2370,Revenue,Rhea Projects Ltd,77753,,
Chorley Borough Council,http://statistics.data.gov.uk/id/local-authority/30UE,Non Domestic Rates Redistribut,0,GOVN - Policy & Governance,Tariff to Business Rates Pool,49002,Expenditure not in NCOS,0,Lancs bus rates pool,31/01/2024,0190659,602095,Revenue,Ribble Valley Borough Council DIRECT DEBIT ONLY,21100,,
Chorley Borough Council,http://statistics.data.gov.uk/id/local-authority/30UE,Regulatory Services,1048,PLAN - Planning & Development,Professional Fees,40063,Services,5027,30 Council-logo embossed Notebook Covers (card supported) @ 18.95 each,17/01/2024,0190159,568.5,Revenue,Richard Jardine Ltd T/A Jardine Leathergoods,89693,,
Chorley Borough Council,http://statistics.data.gov.uk/id/local-authority/30UE,Homelessness,1075,EARL - Communities,Grants - Tenant Participation,40142,Grants and Subscriptions,5031,0,17/01/2024,0190216,625,Revenue,Richard Palin,85421,,
Chorley Borough Council,http://statistics.data.gov.uk/id/local-authority/30UE,Planning Policy,1092,PLAN - Planning & Development,Consultants` Fees,40077,Services,5027,PURCHASE OF CONSULTANCY SERVICES FOR PROGRESSION OF THE CENTRAL LANCASHIRE LOCAL PLAN IN 2023,10/01/2024,0189776,12375,Revenue,Richard Wood Associates Ltd,86909,,
Chorley Borough Council,http://statistics.data.gov.uk/id/local-authority/30UE,Central Support Services,1009,CUST - Customer & Digital,Other Fees,40212,Miscellaneous Expenses,5034,Ongoing Ricoh machine rental costs shared Chorley/SRBC,17/01/2024,0190164,1524.07,Revenue,Ricoh UK Ltd,17126,,
Chorley Borough Council,http://statistics.data.gov.uk/id/local-authority/30UE,Capital,Capital,GROW - Commercial Services,Consultants Fees,03025,Capital Expenditure,Capital,End of Defects Liability period inspections and reporting of defects @ Alker Lane site,24/01/2024,0189769,522,Capital,Rider Levett Bucknall,67527,,
Chorley Borough Council,http://statistics.data.gov.uk/id/local-authority/30UE,Business Support,1095,GROW - Commercial Services,Professional Fees,40063,Services,5027,"Monthly Rightmove subscription fees to cover all advertising and marketing of all Council properties such as Markets, Market walk",03/01/2024,0189768,1079.16,Revenue,Rightmove Group Ltd,77717,,
Chorley Borough Council,http://statistics.data.gov.uk/id/local-authority/30UE,Business Support,1095,GROW - Commercial Services,Professional Fees,40063,Services,5027,Month 2,03/01/2024,0189775,875,Revenue,Rightmove Group Ltd,77717,,
Chorley Borough Council,http://statistics.data.gov.uk/id/local-authority/30UE,Homelessness,1075,EARL - Communities,Grants - Tenant Participation,40142,Grants and Subscriptions,5031,0,17/01/2024,0190228,625,Revenue,Robert Hopes,87235,,
Chorley Borough Council,http://statistics.data.gov.uk/id/local-authority/30UE,Homelessness,1075,GROW - Commercial Services,Security Service,40062,Services,5027,"To provide site concierge services at Cotswold House temporary accommodation facility, hours as outlined , by NAME REDACTED",10/01/2024,0189844,8584.01,Revenue,Secure FM Ltd,86928,,
Chorley Borough Council,http://statistics.data.gov.uk/id/local-authority/30UE,Business Support,1095,GROW - Commercial Services,Security Service,40062,Services,5027,"To provide evening Site Security Services at Market Walk Shopping Centre from 5pm until midnight, 7 , days a week. , , Hourly rat",24/01/2024,0189867,2860.2,Revenue,Secure FM Ltd,86928,,
Chorley Borough Council,http://statistics.data.gov.uk/id/local-authority/30UE,Business Support,1095,GROW - Commercial Services,Security Service,40062,Services,5027,To provide concierge services at Primrose Gardens Extra Care Facility as outlined by NAME REDACTED 7 days a week. Hourly rate ,17/01/2024,0190118,7885.98,Revenue,Secure FM Ltd,86928,,
Chorley Borough Council,http://statistics.data.gov.uk/id/local-authority/30UE,Business Support,1095,GROW - Commercial Services,Security Service,40062,Services,5027,To provide concierge services at Primrose Gardens Extra Care Facility as outlined by NAME REDACTED 7 days a week. Hourly rate ,24/01/2024,0190163,8515.91,Revenue,Secure FM Ltd,86928,,
Chorley Borough Council,http://statistics.data.gov.uk/id/local-authority/30UE,Business Support,1095,GROW - Commercial Services,Security Service,40062,Services,5027,"To provide site concierge services at , Tatton Gardens Extra Care facility, , hours as outlined by NAME REDACTED. 7 days",24/01/2024,0190355,8488.67,Revenue,Secure FM Ltd,86928,,
Chorley Borough Council,http://statistics.data.gov.uk/id/local-authority/30UE,Business Support,1095,GROW - Commercial Services,Gas,20014,Energy Costs,5006,ADDRESS REDACTED,24/01/2024,0190457,811.5,Revenue,SEFE Energy,56502,,
Chorley Borough Council,http://statistics.data.gov.uk/id/local-authority/30UE,Capital,Capital,GROW - Commercial Services,Consultants Fees,03025,Capital Expenditure,Capital,"Woodlands Conference Centre, Southport Rd, Chorley PR7 1QR, Initial Setup Cost",24/01/2024,0189559,550,Capital,SEG Asset management Limited,90026,,
Chorley Borough Council,http://statistics.data.gov.uk/id/local-authority/30UE,Capital,Capital,GROW - Commercial Services,Consultants Fees,03025,Capital Expenditure,Capital,"Woodlands Conference Centre, Southport Rd, Chorley PR7 1QR, Monthly Monitoring Charges, 1550 per month x 6 months",24/01/2024,0189559,9300,Capital,SEG Asset management Limited,90026,,
Chorley Borough Council,http://statistics.data.gov.uk/id/local-authority/30UE,Capital,Capital,GROW - Commercial Services,Consultants Fees,03025,Capital Expenditure,Capital,"Lancashire College, Southport Rd, Chorley PR7 1NB, Initial Setup Cost",24/01/2024,0189559,550,Capital,SEG Asset management Limited,90026,,
Chorley Borough Council,http://statistics.data.gov.uk/id/local-authority/30UE,Capital,Capital,GROW - Commercial Services,Consultants Fees,03025,Capital Expenditure,Capital,"Lancashire College, Southport Rd, Chorley PR7 1NB, Monthly Monitoring Charge, 1750 per month x 6 months",24/01/2024,0189559,10500,Capital,SEG Asset management Limited,90026,,
Chorley Borough Council,http://statistics.data.gov.uk/id/local-authority/30UE,Culture & Heritage,1036,GOVN - Policy & Governance,Misc Expenses,40200,Miscellaneous Expenses,5034,"Annual Pest Control agreement as per quote., , Further to surveys carried out by our pest control technicians we recommend that t",24/01/2024,0187770,533.33,Revenue,South Ribble Borough Council,17889,,
Chorley Borough Council,http://statistics.data.gov.uk/id/local-authority/30UE,Business Support,1095,GROW - Commercial Services,Window Cleaning,20034,Cleaning and Domestic Supplies,5012,"Window Cleaning Services and Quarterly Internal Cleaning at Primrose Gardens, From 01.04.23 - 31.03.24",31/01/2024,0190552,680,Revenue,Sparkle Window Cleaning (Michael Jennings),77989,,
Chorley Borough Council,http://statistics.data.gov.uk/id/local-authority/30UE,Culture & Heritage,1036,GOVN - Policy & Governance,Exhibitions & Special Events,40158,Miscellaneous Expenses,5034,2 buses operating between circa 16:00-21:30 for Astley Illuminated 10th November 2023,24/01/2024,0190324,770,Revenue,Stagecoach Services Limited,18598,,
Chorley Borough Council,http://statistics.data.gov.uk/id/local-authority/30UE,Service Management & Support,1009,CUST - Customer & Digital,Diesel/Derv,30007,Direct Transport Costs,5016,6000 litre road diesel as procured via the chest,10/01/2024,0189715,5774.92,Revenue,Standard Fuel Oils,85167,,
Chorley Borough Council,http://statistics.data.gov.uk/id/local-authority/30UE,Capital,Capital,EARL - Communities,Grants,03002,Capital Expenditure,Capital,0,17/01/2024,0190271,5379,Capital,Stannah Lift Services Ltd,80943,,
Chorley Borough Council,http://statistics.data.gov.uk/id/local-authority/30UE,Capital,Capital,EARL - Communities,Grants,03002,Capital Expenditure,Capital,23/00053/DFG,17/01/2024,0190272,2997,Capital,Stannah Lift Services Ltd,80943,,
Chorley Borough Council,http://statistics.data.gov.uk/id/local-authority/30UE,Capital,Capital,EARL - Communities,Grants,03002,Capital Expenditure,Capital,23/00036/DFG,17/01/2024,0190275,6305,Capital,Stannah Lift Services Ltd,80943,,
Chorley Borough Council,http://statistics.data.gov.uk/id/local-authority/30UE,Homelessness,1075,EARL - Communities,Grants - Tenant Participation,40142,Grants and Subscriptions,5031,0,17/01/2024,0190226,625,Revenue,Stephen Daniels,86923,,
Chorley Borough Council,http://statistics.data.gov.uk/id/local-authority/30UE,Central Support Services,1009,GROW - Commercial Services,Planned Maintenance,20006,Repairs Maintenance & Alts,5005,Supervising engineer services 2023 for Birkacre Reservoir.,03/01/2024,0189234,975,Revenue,Stillwater Associates Limited,84045,,
Chorley Borough Council,http://statistics.data.gov.uk/id/local-authority/30UE,Capital,Capital,GROW - Commercial Services,Other Contractor,03012,Capital Expenditure,Capital,Capital works for Queens Road Car Park,03/01/2024,0189248,529,Capital,Street Civil Engineering Limited,76750,,
Chorley Borough Council,http://statistics.data.gov.uk/id/local-authority/30UE,Capital,Capital,GROW - Commercial Services,Main Contractor,03007,Capital Expenditure,Capital,"Civil engineering investigation at Common Bank Lane, Chorley. Works and costs detailed in submitted quote and to include:, Undert",10/01/2024,0189773,975,Capital,Street Civil Engineering Limited,76750,,
Chorley Borough Council,http://statistics.data.gov.uk/id/local-authority/30UE,Economic Development,1096,GROW - Commercial Services,Fixtures & Fittings - Repair/Mtnce,20028,Fixtures and Fittings,5010,Carry out Traffic Management in conjunction with Ruttle Plant to remove Concrete blocks & planters from the town centre to Yarrow,24/01/2024,0190316,725,Revenue,Street Civil Engineering Limited,76750,,
Chorley Borough Council,http://statistics.data.gov.uk/id/local-authority/30UE,Capital,Capital,EARL - Communities,Grants,03002,Capital Expenditure,Capital,ADDRESS REDACTED,10/01/2024,0189816,15455,Capital,Stringfellow Bldg Cntrctrs Ltd,17893,,
Chorley Borough Council,http://statistics.data.gov.uk/id/local-authority/30UE,Central Support Services,1009,EARL - Communities,Misc Expenses,40200,Miscellaneous Expenses,5034,Raise purchase order for driver and skip hire from Suez and waste disposal for Mendip Road Skip Day on 11th November 2023,10/01/2024,0189323,633.96,Revenue,SUEZ R&R UK LTD,17615,,
Chorley Borough Council,http://statistics.data.gov.uk/id/local-authority/30UE,Central Support Services,1009,EARL - Communities,Misc Expenses,40200,Miscellaneous Expenses,5034,Raise purchase order for driver and skip hire from Suez and waste disposal for Fell View Skip Day on 18th November 2023,10/01/2024,0189323,604.56,Revenue,SUEZ R&R UK LTD,17615,,
Chorley Borough Council,http://statistics.data.gov.uk/id/local-authority/30UE,Service Management & Support,1009,CUST - Customer & Digital,Refuse Collection,20037,Cleaning and Domestic Supplies,5012,Exchange 20 yard Street Sweepings Skip @ 82.26 each,31/01/2024,0189876,1214.4,Revenue,SUEZ R&R UK LTD,17615,,
Chorley Borough Council,http://statistics.data.gov.uk/id/local-authority/30UE,Service Management & Support,1009,CUST - Customer & Digital,Refuse Collection,20037,Cleaning and Domestic Supplies,5012,Exchange 35 yard General Waste Skip @ 101.86 each,31/01/2024,0189876,629.58,Revenue,SUEZ R&R UK LTD,17615,,
Chorley Borough Council,http://statistics.data.gov.uk/id/local-authority/30UE,Central Support Services,1009,EARL - Communities,Misc Expenses,40200,Miscellaneous Expenses,5034,"4x 1 pack thermal sock - ref 28-041, 4x thermal winter gloves - ref 20-a008, 6x insulated travel mugs 420ml - ref 31-070, 4x ther",24/01/2024,0190365,2160,Revenue,Sunhigh Limited,89704,,
Chorley Borough Council,http://statistics.data.gov.uk/id/local-authority/30UE,Homelessness,1075,EARL - Communities,Grants - Tenant Participation,40142,Grants and Subscriptions,5031,0,17/01/2024,0190217,625,Revenue,Susan McGuigan,85422,,
Chorley Borough Council,http://statistics.data.gov.uk/id/local-authority/30UE,Central Support Services,1009,EARL - Communities,Alleygate Repair,40240,"Equipment, Furniture & Materia",5023,Devonshire Road and Lawrence Road Alleygate Scheme,24/01/2024,0190127,763.63,Revenue,T B & B Anderton,83517,,
Chorley Borough Council,http://statistics.data.gov.uk/id/local-authority/30UE,Homelessness,1075,EARL - Communities,Grants - Tenant Participation,40142,Grants and Subscriptions,5031,0,17/01/2024,0190219,625,Revenue,Tawny Burns,87007,,
Chorley Borough Council,http://statistics.data.gov.uk/id/local-authority/30UE,Business Support,1095,GROW - Commercial Services,Misc Expenses,40200,Miscellaneous Expenses,5034,Eviction of travellers at SFDOP 08.12.2023,10/01/2024,0189556,1700,Revenue,The ExcluSec Group Ltd,78056,,
Chorley Borough Council,http://statistics.data.gov.uk/id/local-authority/30UE,Business Support,1095,GROW - Commercial Services,Legal Fees,40171,Miscellaneous Expenses,5034,"Provision of SIA Security Officers @ SFDOP, December 2023",24/01/2024,0190124,8925.07,Revenue,The ExcluSec Group Ltd,78056,,
Chorley Borough Council,http://statistics.data.gov.uk/id/local-authority/30UE,Central Support Services,1009,EARL - Communities,Children's Activities,40188,Miscellaneous Expenses,5034,Event provision for Chorley HAF Programme Christmas 2023 (to take place in Jan 2024) at Inspire Youth Zone as arranged,10/01/2024,0189880,1000,Revenue,The Lancashire Wrestling Federation,77429,,
Chorley Borough Council,http://statistics.data.gov.uk/id/local-authority/30UE,Central Support Services,1009,CUST - Customer & Digital,IT Software - Annual Licences,40101,Communication and Computing,5028,"Annual renewal of Cloud Connect 1,000 Users 22/10/2023 - 21/10/2024",17/01/2024,0189519,3650,Revenue,The Networking People (NorthWest) Ltd T/a TNP Ltd,73446,,
Chorley Borough Council,http://statistics.data.gov.uk/id/local-authority/30UE,Corporate Management,1008,GOVN - Policy & Governance,Professional Fees,40063,Services,5027,0,31/01/2024,0190349,564.39,Revenue,Tradition,80233,,
Chorley Borough Council,http://statistics.data.gov.uk/id/local-authority/30UE,Development Control,1091,PLAN - Planning & Development,Professional Fees,40063,Services,5027,financial viability appraisal in relation to 23/00402/FULMAJ - Land To The East Of Sumner House,24/01/2024,0190391,3000,Revenue,Trebbi Continuum,77723,,
Chorley Borough Council,http://statistics.data.gov.uk/id/local-authority/30UE,Capital,Capital,PLAN - Planning & Development,Main Contractor,03007,Capital Expenditure,Capital,"Tree works to Jubilee Recreation Ground, Adlington as set out in the specification, site plan and quotation.",17/01/2024,0190160,2620,Capital,Treexpert Tree Care,78580,,
Chorley Borough Council,http://statistics.data.gov.uk/id/local-authority/30UE,Capital,Capital,GOVN - Policy & Governance,Purchase Money,03027,Capital Expenditure,Capital,Purchase of land at Burgh Lane,31/01/2024,0188423,250000,Capital,Trustees of the estate of Thomas Halliwell Kevill,89695,,
Chorley Borough Council,http://statistics.data.gov.uk/id/local-authority/30UE,Other Short Term Debtors,0,GOVN - Policy & Governance,Other Debtors,00098,Balance Sheet,Balance,Tusker Lease Car Scheme for staff,10/01/2024,0189852,3603.85,Revenue,Tuskerdirect Ltd,86967,,
Chorley Borough Council,http://statistics.data.gov.uk/id/local-authority/30UE,Control Accounts,Control,GOVN - Policy & Governance,General Balances,00100,Balance Sheet,Balance,Unify - Dec 23 Monthly Deductions from payroll,17/01/2024,0190276,984,Revenue,Unify Credit Union Ltd,55509,,
Chorley Borough Council,http://statistics.data.gov.uk/id/local-authority/30UE,Central Support Services,1009,EARL - Communities,Training Course Fees,17010,Indirect Employee Expenses,5002,CVCL ILM Certificate Level 7,10/01/2024,0189756,1400,Revenue,University of Central Lancashire (UCLAN),22472,,
Chorley Borough Council,http://statistics.data.gov.uk/id/local-authority/30UE,Homelessness,1075,EARL - Communities,Grants - Tenant Participation,40142,Grants and Subscriptions,5031,0,17/01/2024,0190233,625,Revenue,Victoria Travis,89685,,
Chorley Borough Council,http://statistics.data.gov.uk/id/local-authority/30UE,Development Control,1091,PLAN - Planning & Development,Agency Staff,13000,Direct Employee Expenses,5001,"Contract work to assist with planning application processing, Contractor: NAME REDACTED, Time period: 1 April 2023  31 December 2",17/01/2024,0187827,1768,Revenue,Vivid Resourcing Ltd,76938,,
Chorley Borough Council,http://statistics.data.gov.uk/id/local-authority/30UE,Central Support Services,1009,GROW - Commercial Services,Agency Staff,13000,Direct Employee Expenses,5001,Estates surveyor fees for NAME REDACTED as agreed with NAME REDACTED,17/01/2024,0188159,2048.75,Revenue,Vivid Resourcing Ltd,76938,,
Chorley Borough Council,http://statistics.data.gov.uk/id/local-authority/30UE,Development Control,1091,PLAN - Planning & Development,Agency Staff,13000,Direct Employee Expenses,5001,"Contract work to assist with planning application processing, Contractor: NAME REDACTED, Time period: 1 April 2023  31 December 2",17/01/2024,0188161,1898,Revenue,Vivid Resourcing Ltd,76938,,
Chorley Borough Council,http://statistics.data.gov.uk/id/local-authority/30UE,Central Support Services,1009,GROW - Commercial Services,Agency Staff,13000,Direct Employee Expenses,5001,Estates surveyor fees for NAME REDACTED as agreed with NAME REDACTED,17/01/2024,0188263,2021.25,Revenue,Vivid Resourcing Ltd,76938,,
Chorley Borough Council,http://statistics.data.gov.uk/id/local-authority/30UE,Development Control,1091,PLAN - Planning & Development,Agency Staff,13000,Direct Employee Expenses,5001,"Contract work to assist with planning application processing, Contractor: NAME REDACTED, Time period: 1 April 2023  31 December 2",17/01/2024,0188412,1898,Revenue,Vivid Resourcing Ltd,76938,,
Chorley Borough Council,http://statistics.data.gov.uk/id/local-authority/30UE,Development Control,1091,PLAN - Planning & Development,Agency Staff,13000,Direct Employee Expenses,5001,"Contract work to assist with planning application processing, Contractor: NAME REDACTED, Time period: 1 April 2023  31 December 2",17/01/2024,0188569,1898,Revenue,Vivid Resourcing Ltd,76938,,
Chorley Borough Council,http://statistics.data.gov.uk/id/local-authority/30UE,Central Support Services,1009,GROW - Commercial Services,Agency Staff,13000,Direct Employee Expenses,5001,Estates surveyor fees for NAME REDACTED as agreed with NAME REDACTED,17/01/2024,0188783,2021.25,Revenue,Vivid Resourcing Ltd,76938,,
Chorley Borough Council,http://statistics.data.gov.uk/id/local-authority/30UE,Development Control,1091,PLAN - Planning & Development,Agency Staff,13000,Direct Employee Expenses,5001,"Contract work to assist with planning application processing, Contractor: NAME REDACTED, Time period: 1 April 2023  31 December 2",17/01/2024,0188785,1898,Revenue,Vivid Resourcing Ltd,76938,,
Chorley Borough Council,http://statistics.data.gov.uk/id/local-authority/30UE,Development Control,1091,PLAN - Planning & Development,Agency Staff,13000,Direct Employee Expenses,5001,"Contract work to assist with planning application processing, Contractor: NAME REDACTED, Time period: 1 April 2023  31 December 2",17/01/2024,0189335,1898,Revenue,Vivid Resourcing Ltd,76938,,
Chorley Borough Council,http://statistics.data.gov.uk/id/local-authority/30UE,Development Control,1091,PLAN - Planning & Development,Agency Staff,13000,Direct Employee Expenses,5001,"Contract work to assist with planning application processing, Contractor: NAME REDACTED, Time period: 1 April 2023  31 December 2",17/01/2024,0189535,1898,Revenue,Vivid Resourcing Ltd,76938,,
Chorley Borough Council,http://statistics.data.gov.uk/id/local-authority/30UE,Development Control,1091,PLAN - Planning & Development,Agency Staff,13000,Direct Employee Expenses,5001,"Contract work to assist with planning application processing, Contractor: NAME REDACTED, Time period: 1 April 2023  31 December 2",31/01/2024,0189765,1898,Revenue,Vivid Resourcing Ltd,76938,,
Chorley Borough Council,http://statistics.data.gov.uk/id/local-authority/30UE,Development Control,1091,PLAN - Planning & Development,Agency Staff,13000,Direct Employee Expenses,5001,"Contract work to assist with planning application processing, Contractor: NAME REDACTED, Time period: 1 April 2023  31 December 2",17/01/2024,0189869,1898,Revenue,Vivid Resourcing Ltd,76938,,
Chorley Borough Council,http://statistics.data.gov.uk/id/local-authority/30UE,Development Control,1091,PLAN - Planning & Development,Agency Staff,13000,Direct Employee Expenses,5001,"Contract work to assist with planning application processing, Contractor: NAME REDACTED, Time period: 1 April 2023  31 December 2",17/01/2024,0189931,910,Revenue,Vivid Resourcing Ltd,76938,,
Chorley Borough Council,http://statistics.data.gov.uk/id/local-authority/30UE,Development Control,1091,PLAN - Planning & Development,Agency Staff,13000,Direct Employee Expenses,5001,"Contract work to assist with planning application processing, Contractor: NAME REDACTED, Time period: 1 April 2023  31 December 2",17/01/2024,0190125,1560,Revenue,Vivid Resourcing Ltd,76938,,
Chorley Borough Council,http://statistics.data.gov.uk/id/local-authority/30UE,Business Support,1095,GROW - Commercial Services,General Repairs - Reactive,20004,Repairs Maintenance & Alts,5005,Reactive Electrical Repair Works @ Market Walk,03/01/2024,0188303,1480.92,Revenue,Walker Gabbott Electrical Ltd,83932,,
Chorley Borough Council,http://statistics.data.gov.uk/id/local-authority/30UE,Central Support Services,1009,GROW - Commercial Services,Planned Maintenance,20006,Repairs Maintenance & Alts,5005,Planned Electrical Maintenance and Remedial Works @ Union Street,03/01/2024,0189546,1423.3,Revenue,Walker Gabbott Electrical Ltd,83932,,
Chorley Borough Council,http://statistics.data.gov.uk/id/local-authority/30UE,Central Support Services,1009,GROW - Commercial Services,Planned Maintenance,20006,Repairs Maintenance & Alts,5005,Planned Electrical Maintenance and Remedial Works @ Community Centre`s,24/01/2024,0190136,1028.19,Revenue,Walker Gabbott Electrical Ltd,83932,,
Chorley Borough Council,http://statistics.data.gov.uk/id/local-authority/30UE,Regulatory Services,1048,GROW - Commercial Services,Water - Metered Supplies,20022,Water Services,5009,0,17/01/2024,0190097,1241.62,Revenue,WaterPlus 4083536947 Toilets Market Place Chorley,85561,,
Chorley Borough Council,http://statistics.data.gov.uk/id/local-authority/30UE,Central Support Services,1009,GROW - Commercial Services,Water - Metered Supplies,20022,Water Services,5009,0,17/01/2024,0190099,618.24,Revenue,WaterPlus 4083538012 Destructor Stump Lane Chorley,85458,,
Chorley Borough Council,http://statistics.data.gov.uk/id/local-authority/30UE,Central Support Services,1009,GROW - Commercial Services,Water - Metered Supplies,20022,Water Services,5009,0,17/01/2024,0190100,1240.72,Revenue,WaterPlus 4085884879 Town Hall,84240,,
Chorley Borough Council,http://statistics.data.gov.uk/id/local-authority/30UE,Homelessness,1075,GROW - Commercial Services,Water - Metered Supplies,20022,Water Services,5009,0,17/01/2024,0190103,717.35,Revenue,WaterPlus 4160565113 Cotswold House,85562,,
Chorley Borough Council,http://statistics.data.gov.uk/id/local-authority/30UE,Central Support Services,1009,GOVN - Policy & Governance,Postages,40082,Communication and Computing,5028,To cover cost of collections for June 2023 - March 2024,31/01/2024,0190350,513.04,Revenue,Whistl North Limited,67256,,
Chorley Borough Council,http://statistics.data.gov.uk/id/local-authority/30UE,Tourism,1039,GOVN - Policy & Governance,Professional Fees,40063,Services,5027,"Book Benches for the What`s Your Story, Chorley? event, , 3 x large benches (1475 each) = 4425, 3 x small/medium benches (675 ",17/01/2024,0188881,6450,Revenue,Wild in Art,76437,,
Chorley Borough Council,http://statistics.data.gov.uk/id/local-authority/30UE,0,0,0,0,0,0,0,0,00/01/1900,0,0,0,0,0,,
Chorley Borough Council,http://statistics.data.gov.uk/id/local-authority/30UE,0,0,0,0,0,0,0,0,00/01/1900,0,0,0,0,0,,
Chorley Borough Council,http://statistics.data.gov.uk/id/local-authority/30UE,0,0,0,0,0,0,0,0,00/01/1900,0,0,0,0,0,,
Chorley Borough Council,http://statistics.data.gov.uk/id/local-authority/30UE,0,0,0,0,0,0,0,0,00/01/1900,0,0,0,0,0,,
Chorley Borough Council,http://statistics.data.gov.uk/id/local-authority/30UE,0,0,0,0,0,0,0,0,00/01/1900,0,0,0,0,0,,
Chorley Borough Council,http://statistics.data.gov.uk/id/local-authority/30UE,0,0,0,0,0,0,0,0,00/01/1900,0,0,0,0,0,,
Chorley Borough Council,http://statistics.data.gov.uk/id/local-authority/30UE,0,0,0,0,0,0,0,0,00/01/1900,0,0,0,0,0,,
Chorley Borough Council,http://statistics.data.gov.uk/id/local-authority/30UE,0,0,0,0,0,0,0,0,00/01/1900,0,0,0,0,0,,
Chorley Borough Council,http://statistics.data.gov.uk/id/local-authority/30UE,0,0,0,0,0,0,0,0,00/01/1900,0,0,0,0,0,,
Chorley Borough Council,http://statistics.data.gov.uk/id/local-authority/30UE,0,0,0,0,0,0,0,0,00/01/1900,0,0,0,0,0,,
Chorley Borough Council,http://statistics.data.gov.uk/id/local-authority/30UE,0,0,0,0,0,0,0,0,00/01/1900,0,0,0,0,0,,
Chorley Borough Council,http://statistics.data.gov.uk/id/local-authority/30UE,0,0,0,0,0,0,0,0,00/01/1900,0,0,0,0,0,,
Chorley Borough Council,http://statistics.data.gov.uk/id/local-authority/30UE,0,0,0,0,0,0,0,0,00/01/1900,0,0,0,0,0,,
Chorley Borough Council,http://statistics.data.gov.uk/id/local-authority/30UE,0,0,0,0,0,0,0,0,00/01/1900,0,0,0,0,0,,
Chorley Borough Council,http://statistics.data.gov.uk/id/local-authority/30UE,0,0,0,0,0,0,0,0,00/01/1900,0,0,0,0,0,,
Chorley Borough Council,http://statistics.data.gov.uk/id/local-authority/30UE,0,0,0,0,0,0,0,0,00/01/1900,0,0,0,0,0,,
Chorley Borough Council,http://statistics.data.gov.uk/id/local-authority/30UE,0,0,0,0,0,0,0,0,00/01/1900,0,0,0,0,0,,
Chorley Borough Council,http://statistics.data.gov.uk/id/local-authority/30UE,0,0,0,0,0,0,0,0,00/01/1900,0,0,0,0,0,,
Chorley Borough Council,http://statistics.data.gov.uk/id/local-authority/30UE,0,0,0,0,0,0,0,0,00/01/1900,0,0,0,0,0,,
Chorley Borough Council,http://statistics.data.gov.uk/id/local-authority/30UE,0,0,0,0,0,0,0,0,00/01/1900,0,0,0,0,0,,
Chorley Borough Council,http://statistics.data.gov.uk/id/local-authority/30UE,0,0,0,0,0,0,0,0,00/01/1900,0,0,0,0,0,,
Chorley Borough Council,http://statistics.data.gov.uk/id/local-authority/30UE,0,0,0,0,0,0,0,0,00/01/1900,0,0,0,0,0,,
Chorley Borough Council,http://statistics.data.gov.uk/id/local-authority/30UE,0,0,0,0,0,0,0,0,00/01/1900,0,0,0,0,0,,
Chorley Borough Council,http://statistics.data.gov.uk/id/local-authority/30UE,0,0,0,0,0,0,0,0,00/01/1900,0,0,0,0,0,,
Chorley Borough Council,http://statistics.data.gov.uk/id/local-authority/30UE,0,0,0,0,0,0,0,0,00/01/1900,0,0,0,0,0,,
Chorley Borough Council,http://statistics.data.gov.uk/id/local-authority/30UE,0,0,0,0,0,0,0,0,00/01/1900,0,0,0,0,0,,
Chorley Borough Council,http://statistics.data.gov.uk/id/local-authority/30UE,0,0,0,0,0,0,0,0,00/01/1900,0,0,0,0,0,,
Chorley Borough Council,http://statistics.data.gov.uk/id/local-authority/30UE,0,0,0,0,0,0,0,0,00/01/1900,0,0,0,0,0,,
Chorley Borough Council,http://statistics.data.gov.uk/id/local-authority/30UE,0,0,0,0,0,0,0,0,00/01/1900,0,0,0,0,0,,
Chorley Borough Council,http://statistics.data.gov.uk/id/local-authority/30UE,0,0,0,0,0,0,0,0,00/01/1900,0,0,0,0,0,,
Chorley Borough Council,http://statistics.data.gov.uk/id/local-authority/30UE,0,0,0,0,0,0,0,0,00/01/1900,0,0,0,0,0,,
Chorley Borough Council,http://statistics.data.gov.uk/id/local-authority/30UE,0,0,0,0,0,0,0,0,00/01/1900,0,0,0,0,0,,
Chorley Borough Council,http://statistics.data.gov.uk/id/local-authority/30UE,0,0,0,0,0,0,0,0,00/01/1900,0,0,0,0,0,,
Chorley Borough Council,http://statistics.data.gov.uk/id/local-authority/30UE,0,0,0,0,0,0,0,0,00/01/1900,0,0,0,0,0,,
Chorley Borough Council,http://statistics.data.gov.uk/id/local-authority/30UE,0,0,0,0,0,0,0,0,00/01/1900,0,0,0,0,0,,
Chorley Borough Council,http://statistics.data.gov.uk/id/local-authority/30UE,0,0,0,0,0,0,0,0,00/01/1900,0,0,0,0,0,,
Chorley Borough Council,http://statistics.data.gov.uk/id/local-authority/30UE,0,0,0,0,0,0,0,0,00/01/1900,0,0,0,0,0,,
Chorley Borough Council,http://statistics.data.gov.uk/id/local-authority/30UE,0,0,0,0,0,0,0,0,00/01/1900,0,0,0,0,0,,
Chorley Borough Council,http://statistics.data.gov.uk/id/local-authority/30UE,0,0,0,0,0,0,0,0,00/01/1900,0,0,0,0,0,,
Chorley Borough Council,http://statistics.data.gov.uk/id/local-authority/30UE,0,0,0,0,0,0,0,0,00/01/1900,0,0,0,0,0,,
Chorley Borough Council,http://statistics.data.gov.uk/id/local-authority/30UE,0,0,0,0,0,0,0,0,00/01/1900,0,0,0,0,0,,
Chorley Borough Council,http://statistics.data.gov.uk/id/local-authority/30UE,0,0,0,0,0,0,0,0,00/01/1900,0,0,0,0,0,,
Chorley Borough Council,http://statistics.data.gov.uk/id/local-authority/30UE,0,0,0,0,0,0,0,0,00/01/1900,0,0,0,0,0,,
Chorley Borough Council,http://statistics.data.gov.uk/id/local-authority/30UE,0,0,0,0,0,0,0,0,00/01/1900,0,0,0,0,0,,
Chorley Borough Council,http://statistics.data.gov.uk/id/local-authority/30UE,0,0,0,0,0,0,0,0,00/01/1900,0,0,0,0,0,,
Chorley Borough Council,http://statistics.data.gov.uk/id/local-authority/30UE,0,0,0,0,0,0,0,0,00/01/1900,0,0,0,0,0,,
Chorley Borough Council,http://statistics.data.gov.uk/id/local-authority/30UE,0,0,0,0,0,0,0,0,00/01/1900,0,0,0,0,0,,
Chorley Borough Council,http://statistics.data.gov.uk/id/local-authority/30UE,0,0,0,0,0,0,0,0,00/01/1900,0,0,0,0,0,,
